Cogmind - Beta 16 @@@ ROGUE MODE // 2025.11.04 @ 18:14:40 Player: C0-2MO Result: Escaped! Performance ------------- Evolutions (9) 4500 Regions Visited (32) 6400 Robots Destroyed (116) 580 Value Destroyed (4403) 4403 Prototype IDs (218) 4360 Alien Tech Used (0) 0 Bonus (15342) 15342 TOTAL SCORE: 35585 Bonus ------- High Alert Combat Kills 142 Follower Combat Kills 763 Entered Garrisons 2200 Used RIF Installer 6000 Met Data Miner 300 Used Data Conduit 3000 Win 3000 Friendly Fire -63 Cogmind --------- Core Integrity 1531/1600 Matter 118/300 Energy 83/170 System Corruption 0% Temperature Cool (-194) Movement Flying (15) Location To Epsilon Eridani Parts ------- > --- POWER (2) -------- Fusion Compressor Light Antimatter Reactor > --- PROPULSION (6) --- Cooled VTOL Module Improved Surge Thruster Cooled Cesium-ion Thruster Cooled Cesium-ion Thruster Advanced Surge Thruster Advanced Surge Thruster > --- UTILITY (15) ----- Advanced Cryofiber Web Advanced Heat Sink Medium Storage Unit Gravity Neutralizer Enhanced Optical Array Seismic Detector Improved Cloaking Device Experimental Propulsion Shielding System Mapper Quantum Router Relay Coupler [NC] (39) Relay Coupler [Swarmer] (22) Relay Coupler [Grunt] (26) Relay Coupler [Sentry] (24) Relay Coupler [Hunter] (21) > --- WEAPON (2) ------- Improved Remote Datajack Power Sword > --- INVENTORY (10) --- Light Nuclear Core Light Particle Reactor Advanced Surge Thruster Advanced Surge Thruster Improved Matter Compressor (300) Stasis Canceller Stasis Canceller Heavy Missile Launcher Multitool Peak State ------------ > --- POWER ------------ Fusion Compressor Light Antimatter Reactor > --- PROPULSION ------- Cooled VTOL Module Improved Surge Thruster Cooled Cesium-ion Thruster Cooled Cesium-ion Thruster Advanced Surge Thruster Advanced Surge Thruster > --- UTILITY ---------- Advanced Cryofiber Web Advanced Heat Sink Medium Storage Unit Gravity Neutralizer Enhanced Optical Array Seismic Detector Stasis Canceller Improved Cloaking Device Experimental Propulsion Shielding System Mapper Quantum Router Relay Coupler [Swarmer] Relay Coupler [Grunt] Relay Coupler [Sentry] Relay Coupler [Hunter] > --- WEAPON ----------- Improved Remote Datajack Power Sword > --- INVENTORY -------- Light Nuclear Core Light Particle Reactor Advanced Surge Thruster Advanced Surge Thruster Improved Matter Compressor Stasis Canceller Heavy Missile Launcher Multitool [Rating: 140] Favorites ----------- Power Micro Nuclear Core Engine Light Ion Engine Power Core Micro Nuclear Core Reactor Light Antimatter Reactor Propulsion VTOL Module Treads Light Treads Leg Improved Titanium Leg Hover Unit Aerolev Unit Flight Unit VTOL Module Utility Hacking Suite Device Seismic Detector Storage Small Storage Unit Processor Enhanced Optical Array Hackware Hacking Suite Protection Improved Propulsion Shielding Weapon Great Axe Energy Gun Gatling Laser Energy Cannon Ion Cannon Ballistic Gun Assault Rifle Launcher Heavy Missile Launcher Special Weapon Improved Remote Datajack Impact Weapon Hammer Slashing Weapon Great Axe Special Melee Weapon Improved Datajack Build | -11 -10 -10 -8 -8 -8 -8 -7 -7 -7 -7 -6 -6 -6 -6 -6 -6 -5 -5 -5 -4 -4 -4 -4 -3 -3 -3 -3 -2 -2 -1 -1 -1 ------- Run | Yrd Mat Sub Mat Gar Mat Gar Fac Gar Fac Gar Fac Gar Fac Low Low Dat Pro Fac Gar Fac Was Fac Gar Res Gar Res Gar Res Gar Acc Gar Acc Slots Evolved 18 | . . . 4 . . . 2 . . . 2 . . . . . . 2 . 2 . . . 2 . . . 2 . 2 . . Power 1 | . . . . . . . . . . . . . . . . . . . . 1 . . . . . . . . . . . . Propulsion 4 | . . . 2 . . . 1 . . . 1 . . . . . . . . . . . . . . . . . . . . . Utility 13 | . . . 2 . . . 1 . . . 1 . . . . . . 2 . 1 . . . 2 . . . 2 . 2 . . Weapon . | . . . . . . . . . . . . . . . . . . . . . . . . . . . . . . . . . Parts Attached 126 | 4 6 1 19 10 . 12 11 8 12 . 7 2 6 . 2 . . 6 3 5 . . . 4 3 . . . 1 2 2 . Power 17 | . . . 3 . . 2 2 . 2 . 2 . 1 . 1 . . . 1 2 . . . . . . . . . 1 . . Engine 2 | . . . 1 . . . . . 1 . . . . . . . . . . . . . . . . . . . . . . . Core 12 | . . . 2 . . 2 2 . 1 . 2 . 1 . 1 . . . 1 . . . . . . . . . . . . . Reactor 3 | . . . . . . . . . . . . . . . . . . . . 2 . . . . . . . . . 1 . . Propulsion 42 | 2 3 . 8 5 . 5 3 6 3 . . . 3 . . . . 2 . . . . . 2 . . . . . . . . Treads 2 | 2 . . . . . . . . . . . . . . . . . . . . . . . . . . . . . . . . Leg 9 | . . . 4 5 . . . . . . . . . . . . . . . . . . . . . . . . . . . . Wheel . | . . . . . . . . . . . . . . . . . . . . . . . . . . . . . . . . . Hover 4 | . . . 4 . . . . . . . . . . . . . . . . . . . . . . . . . . . . . Flight 27 | . 3 . . . . 5 3 6 3 . . . 3 . . . . 2 . . . . . 2 . . . . . . . . Utility 45 | . 2 . 3 4 . 3 4 . 5 . 3 2 2 . . . . 3 2 3 . . . 2 3 . . . 1 1 2 . Device 17 | . 2 . 2 2 . . 1 . 2 . 1 . . . . . . . 2 2 . . . 2 1 . . . . . . . Storage 2 | . . . . . . . 1 . . . . . 1 . . . . . . . . . . . . . . . . . . . Processor 2 | . . . . . . 1 . . . . 1 . . . . . . . . . . . . . . . . . . . . . Hackware 15 | . . . 1 . . 1 . . 2 . 1 1 . . . . . 3 . 1 . . . . 2 . . . 1 . 2 . Protection 9 | . . . . 2 . 1 2 . 1 . . 1 1 . . . . . . . . . . . . . . . . 1 . . Artifact . | . . . . . . . . . . . . . . . . . . . . . . . . . . . . . . . . . Weapon 22 | 2 1 1 5 1 . 2 2 2 2 . 2 . . . 1 . . 1 . . . . . . . . . . . . . . Energy Gun 5 | . . . 2 . . . 2 . 1 . . . . . . . . . . . . . . . . . . . . . . . Energy Cannon 1 | . . . . . . 1 . . . . . . . . . . . . . . . . . . . . . . . . . . Ballistic Gun 3 | 2 . . 1 . . . . . . . . . . . . . . . . . . . . . . . . . . . . . Ballistic Cannon . | . . . . . . . . . . . . . . . . . . . . . . . . . . . . . . . . . Launcher 3 | . . 1 . 1 . . . 1 . . . . . . . . . . . . . . . . . . . . . . . . Special Weapon 3 | . . . 1 . . . . . . . 1 . . . . . . 1 . . . . . . . . . . . . . . Impact Weapon 3 | . 1 . 1 . . 1 . . . . . . . . . . . . . . . . . . . . . . . . . . Slashing Weapon 2 | . . . . . . . . . 1 . . . . . 1 . . . . . . . . . . . . . . . . . Piercing Weapon . | . . . . . . . . . . . . . . . . . . . . . . . . . . . . . . . . . Special Melee Weapon 2 | . . . . . . . . 1 . . 1 . . . . . . . . . . . . . . . . . . . . . Unidentified Prototypes 10 | . . . 2 . . . 2 . 2 . 1 . 1 . . . . 2 . . . . . . . . . . . . . . Parts Lost 22 | . . 1 1 2 . 6 . 2 2 1 . 3 1 . . . . . . . . . . 1 2 . . . . . . . Power 4 | . . . . . . 1 . . 1 . . 1 1 . . . . . . . . . . . . . . . . . . . Propulsion 7 | . . 1 . 2 . 1 . 1 1 . . 1 . . . . . . . . . . . . . . . . . . . . Utility 9 | . . . 1 . . 2 . 1 . 1 . 1 . . . . . . . . . . . 1 2 . . . . . . . Weapon 2 | . . . . . . 2 . . . . . . . . . . . . . . . . . . . . . . . . . . Highest Loss Streak 3 | . . 1 1 2 . 3 . 1 1 1 . 3 1 . . . . . . . . . . 1 2 . . . . . . . To Critical Strikes . | . . . . . . . . . . . . . . . . . . . . . . . . . . . . . . . . . Average Backups 6 | . 4 4 4 5 5 4 6 7 7 8 7 7 8 8 9 9 10 9 9 9 10 10 10 9 9 8 9 8 8 8 8 9 Power . | . . . . . . . . . . . . 1 . 1 1 1 1 1 1 1 2 2 2 2 2 2 2 2 2 2 2 2 Propulsion . | . 1 1 . . . . . 1 1 2 1 1 . . . . . 1 2 2 2 2 2 2 2 1 2 1 2 2 2 2 Utility 2 | . . . . 1 1 . 2 2 2 2 2 3 5 5 5 5 6 3 3 3 4 4 4 3 3 3 3 3 2 2 2 3 Weapon 1 | . 2 3 1 2 2 1 2 2 3 3 2 1 1 1 1 2 2 2 2 1 1 1 1 1 1 1 1 1 1 1 1 . Tool/Special . | . . . . . . . . . . . . . . . . . . . . . . . . . . . . . . . . . Unused Backups 13 | . 3 1 3 . . 1 . . . . . 1 . . 1 1 . . . 1 . . . . . . . . . . . 1 Power 1 | . . . . . . . . . . . . 1 . . . . . . . . . . . . . . . . . . . . Propulsion 3 | . 1 1 1 . . . . . . . . . . . . . . . . . . . . . . . . . . . . . Utility 5 | . . . . . . 1 . . . . . . . . 1 1 . . . 1 . . . . . . . . . . . 1 Weapon 3 | . 2 . 1 . . . . . . . . . . . . . . . . . . . . . . . . . . . . . Tool/Special 1 | . . . 1 . . . . . . . . . . . . . . . . . . . . . . . . . . . . . Average Slot Usage (%) 93 | . 77 85 89 96 100 87 87 99 96 99 98 99 97 100 100 100 100 92 99 95 100 100 100 95 95 100 100 91 96 94 99 100 Core 5 | . . . 4 9 9 8 7 7 4 7 6 6 5 6 6 6 6 5 5 5 5 5 5 4 4 4 4 4 4 4 4 4 Leg 3 | . . . 12 17 36 13 . . . . . . . . . . . . . . . . . . . . . . . . . . Hover 3 | . . . 20 15 . . . . . . . . . . . . . . . . . . . . . . . . . . . . Flight 26 | . 21 28 1 . . 19 34 37 36 38 39 39 38 40 40 40 40 33 35 31 31 31 31 28 28 28 28 26 26 24 24 24 Device 12 | . 20 28 22 20 18 5 . . 5 7 6 4 5 6 5 6 6 5 10 12 15 15 15 19 22 23 23 21 26 24 20 20 Storage 3 | . . . . . . . 5 7 7 7 6 6 6 6 6 6 6 5 5 5 5 5 5 4 4 4 4 4 4 4 4 4 Processor 4 | . . . . . . 3 7 7 7 7 7 6 6 6 6 6 6 5 5 5 5 5 5 4 4 4 4 4 4 4 4 4 Hackware 12 | . . . 5 9 9 16 15 15 15 14 11 15 19 13 13 13 13 17 11 14 15 15 15 13 11 19 19 17 18 20 26 28 Protection 3 | . . . . 6 9 8 6 6 1 . 5 6 . 6 6 6 6 7 11 6 5 5 5 4 3 . . . . 2 4 4 Energy Gun 1 | . . . 9 2 . . . 5 . . . . . . . . . . . . . . . . . . . . . . . . Ballistic Gun 3 | . 25 13 2 9 7 2 . . . . . . . . . . . . . . . . . . . . . . . . . . Special Weapon 1 | . . . . . 1 . . . . . 1 6 6 6 6 6 6 2 5 5 5 5 5 4 4 4 4 4 4 4 4 3 Impact Weapon 3 | . 2 14 5 5 9 5 6 4 . . . . . . . . . . . . . . . . . . . . . . . . Slashing Weapon 2 | . . . . . . . . . 6 7 6 6 6 6 6 6 6 5 5 4 5 5 5 4 4 4 4 4 4 4 4 4 Special Melee Weapon 1 | . . . . . . . . 1 6 7 4 . . . . . . . . . . . . . . . . . . . . . Peak Build Rating 140 | 4 6 6 36 38 25 37 42 43 46 46 53 55 62 62 65 63 63 89 96 105 105 105 109 121 122 120 120 128 131 138 140 136 Average Rating 48 | 3 5 5 29 29 24 27 35 40 37 45 51 53 59 62 62 62 63 79 93 99 105 105 105 116 118 120 119 120 128 133 134 135 On Entrance 70 | . 4 6 6 35 25 25 32 41 39 46 43 53 50 62 62 61 63 63 89 96 105 105 105 105 120 122 120 120 128 131 135 135 Avg Prop Armor Cover (%) 5 | 26 25 . 8 4 . . . . 7 . 2 2 8 . 1 1 8 7 . . . . . . . . . . . . . . Naked Turns . | . . . . . . . . . . . . . . . . . . . . . . . . . . . . . . . . . Heaviest Build 43 | 3 6 6 18 22 16 19 20 24 21 17 22 22 27 25 26 24 24 28 32 42 38 38 41 40 43 41 41 42 42 43 43 42 Greatest Support 80 | 3 8 8 80 45 45 45 28 28 26 27 25 34 42 32 38 40 40 30 42 44 44 44 56 49 52 43 53 44 56 44 56 56 Greatest Overweight (x) 1 | . . . 1 1 . 1 . 1 . . . . . . 1 . . . 1 1 . . . . . . . 1 . . . . Average Overweight (x) . | . . . . . . . . . . . . . . . . . . . . . . . . . . . . . . . . . Largest Inventory Capacity 10 | 5 5 5 5 5 5 5 8 8 8 8 8 8 10 10 10 10 10 10 10 10 10 10 10 10 10 10 10 10 10 10 10 10 Average Capacity 7 | 5 5 5 5 5 5 5 7 8 8 8 8 8 9 10 10 10 10 10 10 10 10 10 10 10 10 10 10 10 10 10 10 10 Most Carried 10 | 2 5 5 5 5 5 5 8 8 8 8 8 8 10 8 10 10 10 10 10 10 10 10 10 10 10 9 9 9 8 9 9 9 Average Carried 6 | . 4 4 4 5 4 4 6 7 7 8 7 7 8 8 9 9 10 9 9 9 10 10 10 9 9 8 9 8 8 8 8 9 Final Capacity 10 | 5 5 5 5 5 5 5 8 8 8 8 8 8 10 10 10 10 10 10 10 10 10 10 10 10 10 10 10 10 10 10 10 10 Final Carried 10 | 2 5 5 5 5 5 4 8 8 8 8 8 7 8 8 9 10 10 10 10 10 10 10 10 10 9 9 9 8 8 8 9 9 Class Distribution -------------------- 45% | Scavenger-Sprinter 27% | Mutant 15% | Hacker-Sprinter 7% | Scavenger-Mutant Dominant Class ---------------- Mutant | -10/Materials Mutant | -10/Subcaves Mutant | -8/Materials Scavenger-Mutant | -8/Garrison Scavenger-Mutant | -8/Materials Scavenger-Sprinter | -8/Garrison Scavenger-Sprinter | -7/Factory Scavenger-Sprinter | -7/Garrison Scavenger-Sprinter | -7/Factory Scavenger-Sprinter | -7/Garrison Scavenger-Sprinter | -6/Factory Scavenger-Sprinter | -6/Garrison Scavenger-Sprinter | -6/Factory Scavenger-Sprinter | -6/Lower Caves Scavenger-Sprinter | -6/Lower Caves Scavenger-Sprinter | -6/Data Miner Scavenger-Sprinter | -5/Proximity Caves Hacker-Sprinter | -5/Factory Hacker-Mutant | -5/Garrison Hacker-Sprinter | -4/Factory Hacker-Sprinter | -4/Waste Hacker-Sprinter | -4/Factory Hacker-Sprinter | -4/Garrison Hacker-Sprinter | -3/Research Hacker-Sprinter | -3/Garrison Hacker-Sprinter | -3/Research Hacker-Sprinter | -3/Garrison Hacker-Sprinter | -2/Research Hacker-Sprinter | -2/Garrison Hacker-Sprinter | -1/Access Botlord-Sprinter | -1/Garrison Botlord-Sprinter | -1/Access Resources | -11 -10 -10 -8 -8 -8 -8 -7 -7 -7 -7 -6 -6 -6 -6 -6 -6 -5 -5 -5 -4 -4 -4 -4 -3 -3 -3 -3 -2 -2 -1 -1 -1 ----------- Run | Yrd Mat Sub Mat Gar Mat Gar Fac Gar Fac Gar Fac Gar Fac Low Low Dat Pro Fac Gar Fac Was Fac Gar Res Gar Res Gar Res Gar Acc Gar Acc Matter Collected 4039 | 300 124 74 310 226 . 220 156 392 210 . 200 . 311 168 263 . . 21 . 460 . . . 135 . 25 . 190 . 227 . 27 Remotely . | . . . . . . . . . . . . . . . . . . . . . . . . . . . . . . . . . Salvage Created 4363 | 107 215 44 641 431 . 262 177 232 321 . 173 . 372 141 . 29 . 21 . 566 . . . 161 . 25 . 190 . 228 . 27 Parts 234 | 7 15 8 22 17 . 27 4 16 25 . 10 . 15 2 . 3 . 1 . 28 . . . 15 . 4 . 5 . 9 . 1 Haulers Intercepted 11 | . 2 . 2 . . . . . 2 . 1 . . . . . . . . 1 . . . . . . . 2 . 1 . . Recyclers Shooed . | . . . . . . . . . . . . . . . . . . . . . . . . . . . . . . . . . Parts Field Recycled . | . . . . . . . . . . . . . . . . . . . . . . . . . . . . . . . . . Retrieved Matter . | . . . . . . . . . . . . . . . . . . . . . . . . . . . . . . . . . Parts Self-Destructed 9 | . . 8 . . . . . . . . . . . 1 . . . . . . . . . . . . . . . . . . Prevented . | . . . . . . . . . . . . . . . . . . . . . . . . . . . . . . . . . Parts Restored . | . . . . . . . . . . . . . . . . . . . . . . . . . . . . . . . . . Kills | -11 -10 -10 -8 -8 -8 -8 -7 -7 -7 -7 -6 -6 -6 -6 -6 -6 -5 -5 -5 -4 -4 -4 -4 -3 -3 -3 -3 -2 -2 -1 -1 -1 ------- Run | Yrd Mat Sub Mat Gar Mat Gar Fac Gar Fac Gar Fac Gar Fac Low Low Dat Pro Fac Gar Fac Was Fac Gar Res Gar Res Gar Res Gar Acc Gar Acc Combat Hostiles Destroyed 59 | . 3 4 10 10 . 11 . 16 . . . . . . . . . . . 5 . . . . . . . . . . . . Melee 4 | . . . 2 . . 1 . . . . . . . . . . . . . 1 . . . . . . . . . . . . Guns 21 | . 3 1 5 6 . 2 . 4 . . . . . . . . . . . . . . . . . . . . . . . . Cannons 5 | . . . . . . 4 . 1 . . . . . . . . . . . . . . . . . . . . . . . . AOE 26 | . . 3 . 4 . 4 . 11 . . . . . . . . . . . 4 . . . . . . . . . . . . Classes Destroyed 13 | 2 3 1 5 1 . 1 . . . . . . . . . . . . . . . . . . . . . . . . . . Worker 6 | . . . 1 . . . . . 1 . . . 1 . . . . . . 1 . . . 2 . . . . . . . . Builder 4 | . . . 1 . . . . . . . . . . . . . . . . . . . . 1 . 1 . . . . . 1 Tunneler 6 | 2 . . . . . . . . 1 . . . 1 . . . . . . 2 . . . . . . . . . . . . Hauler 11 | . 2 . 2 . . . . . 2 . 1 . . . . . . . . 1 . . . . . . . 2 . 1 . . Recycler 13 | 1 1 . 1 . . . 2 . 1 . . . 3 . . . . . . 2 . . . 1 . . . . . 1 . . Operator 6 | . . . 1 . . . . . 2 . 3 . . . . . . . . . . . . . . . . . . . . . Watcher 10 | . 1 . 3 . . . 1 . 2 . . . . . . . . 1 . 2 . . . . . . . . . . . . Swarmer 35 | . 3 4 3 . . 6 . 15 . . . . . . . . . . . 4 . . . . . . . . . . . . Saboteur 1 | . . . . . . 1 . . . . . . . . . . . . . . . . . . . . . . . . . . Grunt 13 | . . . 3 8 . . . 1 . . . . . . . . . . . 1 . . . . . . . . . . . . Sentry 7 | . . . 4 . . 3 . . . . . . . . . . . . . . . . . . . . . . . . . . Specialist 3 | . . . . 2 . 1 . . . . . . . . . . . . . . . . . . . . . . . . . . Artisan 1 | . . 1 . . . . . . . . . . . . . . . . . . . . . . . . . . . . . . Best Kill Streak 8 | 2 4 4 4 8 . 5 1 6 1 . 1 . 2 . . 1 . 1 . 6 . . . 2 . 1 . 2 . 1 . 1 Combat Bots Only 8 | . 3 4 2 8 . 5 . 6 . . . . . . . . . . . 4 . . . . . . . . . . . . Max Kills in Single Turn 4 | 1 1 2 1 2 . 2 1 3 1 . 1 . 1 . . 1 . 1 . 4 . . . 1 . 1 . 1 . 1 . 1 Gunslinging 1 | . . . . 1 . . . . . . . . . . . . . . . . . . . . . . . . . . . . Exploded 4 | . . 2 . 2 . 2 . 3 . . . . . . . . . . . 4 . . . . . . . . . . . . Melee 1 | . . . 1 . . 1 . . . . . . . . . . . . . 1 . . . . . . . . . . . . Uniques/NPCs Destroyed 1 | . . . . . . . . . . . . . . . . 1 . . . . . . . . . . . . . . . . Data Miner (-6/Data Miner) Combat | -11 -10 -10 -8 -8 -8 -8 -7 -7 -7 -7 -6 -6 -6 -6 -6 -6 -5 -5 -5 -4 -4 -4 -4 -3 -3 -3 -3 -2 -2 -1 -1 -1 -------- Run | Yrd Mat Sub Mat Gar Mat Gar Fac Gar Fac Gar Fac Gar Fac Low Low Dat Pro Fac Gar Fac Was Fac Gar Res Gar Res Gar Res Gar Acc Gar Acc Hostile Shots Fired 548 | . 12 27 62 46 3 70 . 45 41 4 12 32 53 . 11 4 3 1 11 26 . 2 8 10 15 . 13 . 8 . 23 6 Missed 257 | . 5 17 16 18 . 29 . 20 22 2 7 14 29 . 6 3 2 . 7 15 . 2 7 5 6 . 8 . 5 . 8 4 Hits 291 | . 7 10 46 28 3 41 . 25 19 2 5 18 24 . 5 1 1 1 4 11 . . 1 5 9 . 5 . 3 . 15 2 Melee 3 | . . . . . . 3 . . . . . . . . . . . . . . . . . . . . . . . . . . Projectile 288 | . 7 10 46 28 3 38 . 25 19 2 5 18 24 . 5 1 1 1 4 11 . . 1 5 9 . 5 . 3 . 15 2 AOE 1 | . . . . . . . . . . . . . 1 . . . . . . . . . . . . . . . . . . . Critical Strikes 7 | . . . 2 . . . . 1 . . . . 1 . . . . . . 1 . . . . 1 . . . . . 1 . Actively Blocked 1 | . . . . . . . . . . . . . . . . . . . . 1 . . . . . . . . . . . . Damage Taken 4493 | . 53 131 591 441 56 489 . 450 182 34 74 284 435 . 88 48 27 19 71 236 . . 18 144 176 . 96 . 67 . 244 39 Core 956 | . 10 37 183 59 . 89 . 122 60 18 . 18 125 . 56 . . . 35 12 . . . 34 . . 29 . . . 69 . Absorbed by Shields 97 | . . . . . . 36 . . . . . 32 17 . . . . . . . . . . . . . . . . . 12 . Redirected to Shielding 494 | . . . . . . . . 104 . . . 109 . . 21 . 17 . 11 97 . . 11 43 43 . . . . . 38 . Regen/Repaired (Parts) 582 | . . . . . . . . . 34 . 16 . 67 . . . . 176 . 141 . . . . . 77 . 71 . . . . Core Remaining (%) 85 | 100 . 81 . . . 39 . . . 71 . . . . . . 76 . 96 . . . 98 . . . 95 . 100 . . 95 Volleys Fired 143 | 15 16 6 36 15 . 14 . 29 . . 2 5 . . . . . . . 2 . . . . . . . . . . 1 2 Largest 2 | 2 2 1 2 2 . 2 . 2 . . 1 1 . . . . . . . 1 . . . . . . . . . . 1 1 Hottest 160 | 40 40 30 160 105 . 85 . 140 . . 30 5 . . . . . . . 39 . . . . . . . . . . 7 39 Shots Fired 221 | 30 32 8 48 30 . 24 . 37 . . 2 5 . . . . . . . 2 . . . . . . . . . . 1 2 Gun 163 | 30 32 6 46 28 . 10 . 11 . . . . . . . . . . . . . . . . . . . . . . . . Cannon 30 | . . . . . . 12 . 18 . . . . . . . . . . . . . . . . . . . . . . . . Launcher 17 | . . 2 . 2 . 2 . 8 . . . . . . . . . . . 1 . . . . . . . . . . . 2 Special 11 | . . . 2 . . . . . . . 2 5 . . . . . . . 1 . . . . . . . . . . 1 . Kinetic 98 | 30 32 6 5 15 . 10 . . . . . . . . . . . . . . . . . . . . . . . . . . Thermal 99 | . . . 43 13 . 12 . 29 . . 2 . . . . . . . . . . . . . . . . . . . . . Explosive 17 | . . 2 . 2 . 2 . 8 . . . . . . . . . . . 1 . . . . . . . . . . . 2 Electromagnetic . | . . . . . . . . . . . . . . . . . . . . . . . . . . . . . . . . . Robot Hit Streak 17 | 3 11 13 12 17 . 8 . 7 . . 1 2 . . . . . . . 2 . . . . . . . . . . . . Robot Miss Streak 5 | 4 2 1 3 3 . 2 . 5 . . 1 1 . . . . . . . . . . . . . . . . . . 1 . Penetration Max . | . . . . . . . . . . . . . . . . . . . . . . . . . . . . . . . . . Secondary Targets 3 | . . . . 3 . . . . . . . . . . . . . . . . . . . . . . . . . . . . Max Gunslinging Chain 1 | . . . . 1 . . . . . . . . . . . . . . . . . . . . . . . . . . . . Shots Hit Robots 235 | 16 21 4 56 23 . 17 4 25 13 1 10 3 5 4 . 1 . 1 . 17 . 1 . 4 . 1 . 5 . 2 . 1 Core Hits 147 | 6 12 5 30 21 . 11 2 27 8 . 3 . 2 . . 1 . 1 . 10 . . . 3 . 1 . 2 . 2 . . Critical Kills 2 | . 1 . . . . 1 . . . . . . . . . . . . . . . . . . . . . . . . . . Critical Parts Destroyed 3 | . . . 3 . . . . . . . . . . . . . . . . . . . . . . . . . . . . . Critical Strikes 9 | . 1 . 3 . . 1 . . 1 . 1 . . . . . . . . 2 . . . . . . . . . . . . Destroy 2 | . 1 . . . . 1 . . . . . . . . . . . . . . . . . . . . . . . . . . Smash 3 | . . . 3 . . . . . . . . . . . . . . . . . . . . . . . . . . . . . Sever 4 | . . . . . . . . . 1 . 1 . . . . . . . . 2 . . . . . . . . . . . . Melee Attacks 314 | . 2 14 48 24 2 17 18 3 40 1 24 1 16 10 7 5 . 12 1 30 . 3 2 8 1 6 . 7 1 8 1 2 Impact 128 | . 2 14 48 24 2 17 18 3 . . . . . . . . . . . . . . . . . . . . . . . . Slashing 185 | . . . . . . . . . 40 1 23 1 16 10 7 5 . 12 1 30 . 3 2 8 1 6 . 7 1 8 1 2 Piercing . | . . . . . . . . . . . . . . . . . . . . . . . . . . . . . . . . . Sneak Attacks 42 | . . . 4 . . . 2 . 6 1 3 . 5 . . 1 . 1 . 8 . 1 . 4 . 1 . 2 . 2 . 1 Combat Hostiles 2 | . . . . . . . . . . 1 . . . . . . . . . 1 . . . . . . . . . . . . Follow-up Attacks . | . . . . . . . . . . . . . . . . . . . . . . . . . . . . . . . . . Damage Inflicted 11132 | 161 241 271 1614 828 . 631 272 1745 896 81 584 . 460 332 . 74 . 79 . 1482 . 126 . 457 . 112 . 398 . 196 . 92 Guns 2066 | 161 241 23 887 429 . 143 . 182 . . . . . . . . . . . . . . . . . . . . . . . . Cannons 571 | . . . . . . 229 . 342 . . . . . . . . . . . . . . . . . . . . . . . . Explosions 2389 | . . 248 . 365 . 226 . 1221 . . . . . . . . . . . 329 . . . . . . . . . . . . Melee 6084 | . . . 713 34 . 33 272 . 896 81 576 . 460 332 . 74 . 79 . 1153 . 126 . 457 . 112 . 398 . 196 . 92 Ramming . | . . . . . . . . . . . . . . . . . . . . . . . . . . . . . . . . . Kinetic 728 | 161 241 23 27 133 . 143 . . . . . . . . . . . . . . . . . . . . . . . . . . Thermal 2033 | . . . 874 296 . 229 . 524 . . 8 . . . . . . . . 102 . . . . . . . . . . . . Explosive 2287 | . . 248 . 365 . 226 . 1221 . . . . . . . . . . . 227 . . . . . . . . . . . . Electromagnetic . | . . . . . . . . . . . . . . . . . . . . . . . . . . . . . . . . . Impact 1052 | . . . 713 34 . 33 272 . . . . . . . . . . . . . . . . . . . . . . . . . Slashing 5032 | . . . . . . . . . 896 81 576 . 460 332 . 74 . 79 . 1153 . 126 . 457 . 112 . 398 . 196 . 92 Piercing . | . . . . . . . . . . . . . . . . . . . . . . . . . . . . . . . . . Highest Corruption 2 | . 2 2 . . . 1 1 1 1 1 . . . . . . . . . . . . . . . . . . . . . . Average Corruption 1 | . 2 2 . . . 1 1 1 1 1 . . . . . . . . . . . . . . . . . . . . . . Corruption Purged 1 | . . . . . . . . . 1 . . . . . . . . . . . . . . . . . . . . . . . Corruption Blocked . | . . . . . . . . . . . . . . . . . . . . . . . . . . . . . . . . . Effects 8 | . . 5 . . . . . 2 1 . . . . . . . . . . . . . . . . . . . . . . . Message Errors 1 | . . . . . . . . . 1 . . . . . . . . . . . . . . . . . . . . . . . Matter Fused 1 | . . 1 . . . . . . . . . . . . . . . . . . . . . . . . . . . . . . Heat Flow Errors 1 | . . 1 . . . . . . . . . . . . . . . . . . . . . . . . . . . . . . Data Loss (minor) 1 | . . . . . . . . 1 . . . . . . . . . . . . . . . . . . . . . . . . Data Loss (major) 1 | . . 1 . . . . . . . . . . . . . . . . . . . . . . . . . . . . . . Misfires 3 | . . 2 . . . . . 1 . . . . . . . . . . . . . . . . . . . . . . . . Overload Shots . | . . . . . . . . . . . . . . . . . . . . . . . . . . . . . . . . . Overflow Damage 1791 | . . 64 230 . . 5 52 140 69 31 169 . 203 241 . . . . . 282 . . . 106 . . . 137 . . . 62 Projectiles 9 | . . . . . . . . 9 . . . . . . . . . . . . . . . . . . . . . . . . Explosions 277 | . . 64 . . . 5 . 131 . . . . . . . . . . . 77 . . . . . . . . . . . . Melee 1505 | . . . 230 . . . 52 . 69 31 169 . 203 241 . . . . . 205 . . . 106 . . . 137 . . . 62 Knockbacks 2 | . . . 1 . . 1 . . . . . . . . . . . . . . . . . . . . . . . . . . Impact 2 | . . . 1 . . 1 . . . . . . . . . . . . . . . . . . . . . . . . . . Kinetic . | . . . . . . . . . . . . . . . . . . . . . . . . . . . . . . . . . Secondary . | . . . . . . . . . . . . . . . . . . . . . . . . . . . . . . . . . Self-Inflicted Damage 184 | . . 16 . 30 . 81 . 15 . . . . . . . . . . . 42 . . . . . . . . . . . . Shots 6 | . . 1 . 1 . 2 . 1 . . . . . . . . . . . 1 . . . . . . . . . . . . Rammed . | . . . . . . . . . . . . . . . . . . . . . . . . . . . . . . . . . Targets Rammed . | . . . . . . . . . . . . . . . . . . . . . . . . . . . . . . . . . Kicked . | . . . . . . . . . . . . . . . . . . . . . . . . . . . . . . . . . Crushed . | . . . . . . . . . . . . . . . . . . . . . . . . . . . . . . . . . Highest Temperature 263 | . . 167 204 96 . 95 . 214 57 118 16 55 226 246 262 154 181 62 263 47 156 155 120 18 224 . . . 6 . . . Average Temperature 54 | . . 92 74 40 . 19 . 81 15 47 5 19 74 88 114 44 130 17 122 27 87 101 46 9 102 . . . 4 . . . Received Heat Transfer 741 | . . 18 207 117 27 36 . 45 81 18 . 66 12 . 12 . . 9 . 36 . . . 21 . . 9 . 18 . 9 . Effects 1 | . . . . . . . . . . . . . . . 1 . . . . . . . . . . . . . . . . . Interference 1 | . . . . . . . . . . . . . . . 1 . . . . . . . . . . . . . . . . . Siege Activations . | . . . . . . . . . . . . . . . . . . . . . . . . . . . . . . . . . Martial Activations . | . . . . . . . . . . . . . . . . . . . . . . . . . . . . . . . . . Shielding Activations . | . . . . . . . . . . . . . . . . . . . . . . . . . . . . . . . . . Robots Disrupted . | . . . . . . . . . . . . . . . . . . . . . . . . . . . . . . . . . Combat Hostiles . | . . . . . . . . . . . . . . . . . . . . . . . . . . . . . . . . . Robots Corrupted 6 | . . . 5 . . . 1 . . . . . . . . . . . . . . . . . . . . . . . . . Combat Hostiles 3 | . . . 3 . . . . . . . . . . . . . . . . . . . . . . . . . . . . . Parts Fried 9 | . . . 8 . . . 1 . . . . . . . . . . . . . . . . . . . . . . . . . Impact Corruptions 14 | . . . 12 . . . 2 . . . . . . . . . . . . . . . . . . . . . . . . . Robots Melted . | . . . . . . . . . . . . . . . . . . . . . . . . . . . . . . . . . Combat Hostiles . | . . . . . . . . . . . . . . . . . . . . . . . . . . . . . . . . . Parts Melted 8 | . . . 6 1 . . . 1 . . . . . . . . . . . . . . . . . . . . . . . . Heat Transferred 4088 | . . . 2025 675 . 370 . 943 . . 25 . . . . . . . . 50 . . . . . . . . . . . . Parts Sabotaged 7 | . . . . . . 7 . . . . . . . . . . . . . . . . . . . . . . . . . . Parts Stolen . | . . . . . . . . . . . . . . . . . . . . . . . . . . . . . . . . . Parts Stripped . | . . . . . . . . . . . . . . . . . . . . . . . . . . . . . . . . . Power Chain Reactions . | . . . . . . . . . . . . . . . . . . . . . . . . . . . . . . . . . Alert | -11 -10 -10 -8 -8 -8 -8 -7 -7 -7 -7 -6 -6 -6 -6 -6 -6 -5 -5 -5 -4 -4 -4 -4 -3 -3 -3 -3 -2 -2 -1 -1 -1 ------- Run | Yrd Mat Sub Mat Gar Mat Gar Fac Gar Fac Gar Fac Gar Fac Low Low Dat Pro Fac Gar Fac Was Fac Gar Res Gar Res Gar Res Gar Acc Gar Acc Maximum Alert Level 3 | . . . 1 2 1 2 1 3 2 . 1 . 1 . . . . . . 1 . . . . . . . . 1 . 1 1 Low Security (%) 63 | 100 100 . 98 9 . 5 71 62 2 100 68 100 96 . . . . 100 100 53 100 100 100 100 100 100 100 100 79 100 21 54 Level 1 21 | . . . 1 34 100 64 28 11 31 . 31 . 3 . . . . . . 46 . . . . . . . . 20 . 78 45 Level 2 13 | . . . . 56 . 30 . 9 65 . . . . . . . . . . . . . . . . . . . . . . . Level 3 1 | . . . . . . . . 16 . . . . . . . . . . . . . . . . . . . . . . . . Level 4 . | . . . . . . . . . . . . . . . . . . . . . . . . . . . . . . . . . Level 5 . | . . . . . . . . . . . . . . . . . . . . . . . . . . . . . . . . . High Security . | . . . . . . . . . . . . . . . . . . . . . . . . . . . . . . . . . Max Security . | . . . . . . . . . . . . . . . . . . . . . . . . . . . . . . . . . Peak Influence 738 | 5 184 . 224 639 312 547 287 738 465 190 282 183 254 . . . . 22 74 355 124 140 123 81 108 112 99 127 212 188 232 224 Initial 376 | . . . 31 147 311 183 287 . 376 124 96 51 90 . . . . . 9 38 124 86 98 69 41 66 84 55 87 127 150 139 Average 193 | 1 112 . 51 434 299 337 131 274 412 145 161 98 101 . . . . 6 41 169 124 97 101 70 65 92 90 101 121 140 208 174 Influence Increases 6197 | 15 274 170 606 552 2 424 147 858 434 111 389 192 334 15 120 20 . 64 65 487 . 64 65 36 97 76 15 92 125 111 142 95 Destroy 0b10 Robot/C 1560 | . 60 80 200 240 . 280 . 520 . . 40 20 . . . 20 . . . 100 . . . . . . . . . . . . Destroy 0b10 Robot/NC 295 | 15 20 . 45 . . . 15 . 45 . 20 . 25 15 . . . 5 . 40 . . . 20 . 5 . 10 . 10 . 5 Destroy Leader 202 | . 16 . 70 10 . 10 2 30 8 . 22 . . . . . . 2 . 26 . . . . . . . 4 . 2 . . Allied During Kill 186 | . . . . 20 . 19 . 126 . . 20 1 . . . . . . . . . . . . . . . . . . . . Successful Hack 602 | . 12 . 20 7 . . 59 26 91 16 65 16 58 . . . . 20 . 34 . . . 10 12 33 . 75 . 36 12 . Select Force Hacks 210 | . 60 . 60 . . . . . 30 . . . . . . . . . . . . 30 . . . . . . . 30 . . Disable Machine 165 | . . . . . . . 15 30 15 . 45 . . . . . . . . 45 . . . . . . . . . . . 15 Anti-Garrison Action 550 | . . . . 100 . 50 . 50 . 50 . 50 . . . . . . 50 . . . 50 . 50 . . . 50 . 50 . Destroy Structure 477 | . 1 . 16 55 2 50 11 61 20 . 12 . 11 . . . . 22 . 92 . 4 . 6 5 8 . 3 . 18 20 60 Partial Spotted 585 | . . . 30 15 . . 30 . 75 45 75 . 45 . . . . 15 15 60 . 30 15 . . 30 15 . 15 15 45 15 Lose Combat Pursuer 1365 | . 105 90 165 105 . 15 15 15 150 . 90 105 195 . 120 . . . . 90 . . . . 30 . . . 60 . 15 . Influence Decreases 5973 | 15 149 235 439 140 358 160 694 140 974 104 501 92 253 145 85 169 10 50 5 206 231 48 82 104 34 82 28 74 30 135 98 103 Entered New Map 2527 | . . 61 29 80 328 100 260 . 342 54 89 22 83 95 25 159 10 . 5 36 231 38 42 54 14 52 28 44 30 85 38 93 Time Decay 1974 | 15 149 164 270 . 30 . 152 . 302 . 222 . 160 50 60 10 . 50 . 170 . 10 . 40 . 30 . 30 . 50 . 10 Search Patrol Dispatched 100 | . . . . . . . . . . . 100 . . . . . . . . . . . . . . . . . . . . . Lost Part 219 | . . 10 9 20 . 60 . 20 20 10 . 30 10 . . . . . . . . . . 10 20 . . . . . . . Lost Ally 470 | . . . . 40 . . 30 120 10 40 90 40 . . . . . . . . . . 40 . . . . . . . 60 . Purge Threat 683 | . . . 131 . . . 252 . 300 . . . . . . . . . . . . . . . . . . . . . . . Squads Dispatched 49 | . 2 . 7 . . . 5 . 10 . 4 . 5 . 1 . . 1 . 4 . 2 . 1 . 2 . 2 . 3 . . Investigation 35 | . 2 . 2 . . . 4 . 7 . 2 . 4 . . . . 1 . 3 . 2 . 1 . 2 . 2 . 3 . . Extermination 5 | . . . . . . . 1 . 2 . . . 1 . . . . . . 1 . . . . . . . . . . . . Reinforcement 5 | . . . 3 . . . . . 1 . 1 . . . . . . . . . . . . . . . . . . . . . Assault 1 | . . . . . . . . . . . . . . . 1 . . . . . . . . . . . . . . . . . Garrison 3 | . . . 2 . . . . . . . 1 . . . . . . . . . . . . . . . . . . . . . Intercept . | . . . . . . . . . . . . . . . . . . . . . . . . . . . . . . . . . Searches Triggered 1 | . . . . . . . . . . . 1 . . . . . . . . . . . . . . . . . . . . . Unchained Authorized 1 | . . . . . . . . . . . . . . . . . . . . 1 . . . . . . . . . . . . Construction Impeded . | . . . . . . . . . . . . . . . . . . . . . . . . . . . . . . . . . Haulers Reinforced 1 | . . . . . . . . . . . 1 . . . . . . . . . . . . . . . . . . . . . Active Scanning Responses . | . . . . . . . . . . . . . . . . . . . . . . . . . . . . . . . . . Cargo Convoy Interrupts . | . . . . . . . . . . . . . . . . . . . . . . . . . . . . . . . . . Alert ID Control Effect 7 | . . . . . . . . . . . . . . . . . . . . . . . . . . . . . 1 . 6 . Stealth | -11 -10 -10 -8 -8 -8 -8 -7 -7 -7 -7 -6 -6 -6 -6 -6 -6 -5 -5 -5 -4 -4 -4 -4 -3 -3 -3 -3 -2 -2 -1 -1 -1 --------- Run | Yrd Mat Sub Mat Gar Mat Gar Fac Gar Fac Gar Fac Gar Fac Low Low Dat Pro Fac Gar Fac Was Fac Gar Res Gar Res Gar Res Gar Acc Gar Acc Distress Signals 9 | . . . 2 . . . 1 . 1 . 1 . 3 . . . . . . . . 1 . . . . . . . . . . Communications Jammed . | . . . . . . . . . . . . . . . . . . . . . . . . . . . . . . . . . Distress Signals . | . . . . . . . . . . . . . . . . . . . . . . . . . . . . . . . . . Times Spotted 349 | . 10 18 40 13 2 21 5 31 22 4 16 24 25 . 10 4 1 2 7 17 . 3 6 11 9 2 7 2 8 3 20 6 Peak Tracking Total 22 | . 3 6 9 12 2 11 2 6 5 6 4 22 13 . 8 4 1 2 9 7 . 3 6 11 13 2 6 2 7 2 14 6 Tactical Retreats 44 | . 3 4 7 3 . 1 1 1 5 . 2 1 6 . 3 . . . . 4 . . . . 1 . . . 1 . 1 . Traps | -11 -10 -10 -8 -8 -8 -8 -7 -7 -7 -7 -6 -6 -6 -6 -6 -6 -5 -5 -5 -4 -4 -4 -4 -3 -3 -3 -3 -2 -2 -1 -1 -1 ------- Run | Yrd Mat Sub Mat Gar Mat Gar Fac Gar Fac Gar Fac Gar Fac Low Low Dat Pro Fac Gar Fac Was Fac Gar Res Gar Res Gar Res Gar Acc Gar Acc Traps Triggered 30 | . 1 . . 2 . 1 . 3 . . . 2 4 . . . . . 2 3 . . . . 4 . 3 . 3 . 2 . Indirectly . | . . . . . . . . . . . . . . . . . . . . . . . . . . . . . . . . . Trap Hack Attempts 21 | . . . . . . . . 21 . . . . . . . . . . . . . . . . . . . . . . . . Triggered . | . . . . . . . . . . . . . . . . . . . . . . . . . . . . . . . . . Disarmed 2 | . . . . . . . . 2 . . . . . . . . . . . . . . . . . . . . . . . . Reprogrammed 1 | . . . . . . . . 1 . . . . . . . . . . . . . . . . . . . . . . . . Reused . | . . . . . . . . . . . . . . . . . . . . . . . . . . . . . . . . . Traps Extracted . | . . . . . . . . . . . . . . . . . . . . . . . . . . . . . . . . . Installed . | . . . . . . . . . . . . . . . . . . . . . . . . . . . . . . . . . Triggered . | . . . . . . . . . . . . . . . . . . . . . . . . . . . . . . . . . Machines | -11 -10 -10 -8 -8 -8 -8 -7 -7 -7 -7 -6 -6 -6 -6 -6 -6 -5 -5 -5 -4 -4 -4 -4 -3 -3 -3 -3 -2 -2 -1 -1 -1 ---------- Run | Yrd Mat Sub Mat Gar Mat Gar Fac Gar Fac Gar Fac Gar Fac Low Low Dat Pro Fac Gar Fac Was Fac Gar Res Gar Res Gar Res Gar Acc Gar Acc Machines Disabled 24 | . . 1 . 2 . 1 1 4 1 . 3 1 . . . . . . 1 3 . . 2 . 1 . . . 1 . 1 1 Max in Single Turn 3 | . . 1 . 1 . 1 1 1 1 . 1 1 . . . . . . 1 3 . . 1 . 1 . . . 1 . 1 1 Garrison Access 5 | . . . . . . . . . 1 . . . 2 . . . . . . 1 . . . . . . . 1 . . . . Garrison Relay 9 | . . . . 2 . . . 1 . . . 1 . . . . . . 1 . . . 1 . 1 . . . 1 . 1 . Energy Cycler 1 | . . . . . . . . . . . . . . . . . . . . . . . . . . . . . . . . 1 Machines Repaired . | . . . . . . . . . . . . . . . . . . . . . . . . . . . . . . . . . Machines Dismantled . | . . . . . . . . . . . . . . . . . . . . . . . . . . . . . . . . . Machines Sabotaged . | . . . . . . . . . . . . . . . . . . . . . . . . . . . . . . . . . Overloaded Fab Kills . | . . . . . . . . . . . . . . . . . . . . . . . . . . . . . . . . . Hacking | -11 -10 -10 -8 -8 -8 -8 -7 -7 -7 -7 -6 -6 -6 -6 -6 -6 -5 -5 -5 -4 -4 -4 -4 -3 -3 -3 -3 -2 -2 -1 -1 -1 --------- Run | Yrd Mat Sub Mat Gar Mat Gar Fac Gar Fac Gar Fac Gar Fac Low Low Dat Pro Fac Gar Fac Was Fac Gar Res Gar Res Gar Res Gar Acc Gar Acc Machines Accessed 137 | . 9 1 11 1 3 2 17 3 22 1 12 1 12 . . 4 . 7 . 8 . 2 1 3 1 3 1 6 . 4 2 . Terminals 72 | . 7 . 6 1 2 2 11 3 12 1 8 1 4 . . . . 2 . 2 . . 1 . 1 1 1 3 . 1 2 . Fabricators 12 | . . . . . . . 2 . 3 . 1 . 1 . . . . 1 . 2 . . . 1 . . . . . 1 . . Repair Stations 10 | . . . . . . . . . 1 . 1 . 2 . . . . 3 . 1 . . . . . 1 . 1 . . . . Recycling Units 9 | . 2 . 2 . . . 1 . 1 . . . 1 . . . . . . 1 . . . 1 . . . . . . . . Scanalyzers 13 | . . . 2 . . . 2 . 3 . 1 . 2 . . . . . . 1 . 1 . . . . . . . 1 . . Garrison Access 16 | . . . 1 . 1 . 1 . 2 . 1 . 2 . . . . 1 . 1 . 1 . 1 . 1 . 2 . 1 . . Total Hacks 437 | . 24 3 30 2 4 7 83 8 63 2 30 2 33 . . 30 . 23 . 28 . 5 2 11 5 10 1 16 . 11 4 . Successful 281 | . 13 3 23 1 2 1 50 3 37 1 21 2 23 . . 30 . 19 . 18 . 3 1 5 1 7 . 7 . 6 4 . Failed 153 | . 11 . 7 1 2 6 32 5 25 1 8 . 10 . . . . 4 . 10 . 2 1 6 4 3 1 9 . 5 . . Catastrophic 17 | . 1 . 1 . 2 1 2 1 2 1 . . . . . . . 2 . 1 . . . . 2 . . . . 1 . . Database Lockouts 3 | . . . . . . . 1 . 1 . 1 . . . . . . . . . . . . . . . . . . . . . Manual 228 | . 22 . 17 . 3 2 42 4 43 2 17 1 20 . . . . 10 . 10 . 4 1 5 . 4 1 11 . 6 3 . Terminals 238 | . 22 . 18 2 2 7 63 8 39 2 18 2 15 . . . . 9 . 8 . . 2 . 5 3 1 7 . 1 4 . Fabricators 46 | . . . . . . . 7 . 9 . 1 . 4 . . . . 6 . 7 . . . 8 . . . . . 4 . . Repair Stations 29 | . . . . . . . . . 3 . 2 . 4 . . . . 6 . 4 . . . . . 5 . 5 . . . . Recycling Units 21 | . 2 . 3 . . . 6 . 1 . . . 2 . . . . . . 5 . . . 2 . . . . . . . . Scanalyzers 38 | . . . 8 . . . 5 . 5 . 7 . 6 . . . . . . 3 . 1 . . . . . . . 3 . . Garrison Access 32 | . . . 1 . 2 . 2 . 6 . 2 . 2 . . . . 2 . 1 . 4 . 1 . 2 . 4 . 3 . . Terminal Hacks 87 | . 3 3 3 1 . 1 15 2 7 1 2 2 2 . . 30 . 6 . 1 . . 1 . 1 1 . 1 . . 4 . Record 14 | . . 3 . . . . . . . . . . . . . 11 . . . . . . . . . . . . . . . . Part Schematic 20 | . . . . . . . 3 . 2 . . . . . . 10 . 4 . 1 . . . . . . . . . . . . Robot Schematic 7 | . . . . . . . 1 . . . . . . . . 6 . . . . . . . . . . . . . . . . Robot Analysis 4 | . 2 . . . . . 1 . 1 . . . . . . . . . . . . . . . . . . . . . . . Prototype ID Bank 8 | . . . . . . . 3 . 1 . . . . . . 3 . . . . . . . . . 1 . . . . . . Open Door 2 | . . . . 1 . 1 . . . . . . . . . . . . . . . . . . . . . . . . . . Branch Access Points 3 | . . . . . . . 1 . . . . . 1 . . . . . . . . . . . . . . 1 . . . . Terminal Index 4 | . . . 1 . . . 1 . . . 1 . 1 . . . . . . . . . . . . . . . . . . . Fabricator Index 2 | . . . . . . . 1 . . . 1 . . . . . . . . . . . . . . . . . . . . . Unreport Threat 5 | . . . 1 . . . 2 . 2 . . . . . . . . . . . . . . . . . . . . . . . Maintenance Status 1 | . . . . . . . 1 . . . . . . . . . . . . . . . . . . . . . . . . . Registered Prototypes 1 | . . . . . . . . . . . . . . . . . . 1 . . . . . . . . . . . . . . Zone Layout 5 | . 1 . 1 . . . 1 . 1 . . . . . . . . 1 . . . . . . . . . . . . . . Garrison Registry 5 | . . . . . . . . 1 . 1 . 1 . . . . . . . . . . 1 . . . . . . . 1 . Patrol Navigation 2 | . . . . . . . . . . . . 1 . . . . . . . . . . . . . . . . . . 1 . Security Stations 4 | . . . . . . . . 1 . . . . . . . . . . . . . . . . 1 . . . . . 2 . Fabricator Hacks 21 | . . . . . . . 2 . 5 . 1 . 1 . . . . 4 . 4 . . . 2 . . . . . 2 . . Network Status 1 | . . . . . . . 1 . . . . . . . . . . . . . . . . . . . . . . . . . Load Schematic 11 | . . . . . . . 1 . 3 . . . 1 . . . . 2 . 2 . . . 1 . . . . . 1 . . Build 9 | . . . . . . . . . 2 . 1 . . . . . . 2 . 2 . . . 1 . . . . . 1 . . Repair Station Hacks 20 | . . . . . . . . . 2 . 2 . 2 . . . . 6 . 4 . . . . . 2 . 2 . . . . Scan Component 10 | . . . . . . . . . 1 . 1 . 1 . . . . 3 . 2 . . . . . 1 . 1 . . . . Repair 10 | . . . . . . . . . 1 . 1 . 1 . . . . 3 . 2 . . . . . 1 . 1 . . . . Recycling Unit Hacks 6 | . . . . . . . 2 . . . . . 1 . . . . . . 2 . . . 1 . . . . . . . . Process 1 | . . . . . . . . . . . . . . . . . . . . 1 . . . . . . . . . . . . Retrieve Matter 4 | . . . . . . . 1 . . . . . 1 . . . . . . 1 . . . 1 . . . . . . . . Retrieve Components 1 | . . . . . . . 1 . . . . . . . . . . . . . . . . . . . . . . . . . Scanalyzer 31 | . . . 7 . . . 5 . 4 . 7 . 5 . . . . . . 3 . . . . . . . . . . . . Insert Component 7 | . . . 2 . . . 2 . . . 1 . 2 . . . . . . . . . . . . . . . . . . . Analyze 11 | . . . 2 . . . 2 . . . 5 . 2 . . . . . . . . . . . . . . . . . . . Retrieve Study 13 | . . . 3 . . . 1 . 4 . 1 . 1 . . . . . . 3 . . . . . . . . . . . . Garrison Access Hacks 16 | . . . 1 . 1 . 1 . 2 . 1 . 2 . . . . 1 . 1 . 1 . 1 . 1 . 2 . 1 . . Unlock Access 11 | . . . 1 . 1 . 1 . 1 . 1 . . . . . . 1 . . . 1 . 1 . 1 . 1 . 1 . . Seal Access 5 | . . . . . . . . . 1 . . . 2 . . . . . . 1 . . . . . . . 1 . . . . Unauthorized Hacks 100 | . 10 . 12 . 1 . 25 1 17 . 8 . 10 . . . . 2 . 3 . 2 . 1 . 3 . 2 . 3 . . Terminals 67 | . 8 . 10 . . . 20 1 9 . 7 . 6 . . . . 1 . 1 . . . . . 2 . 1 . 1 . . Track 5 | . . . 1 . . . 2 . . . . . . . . . . . . 1 . . . . . 1 . . . . . . Assimilate 6 | . . . 1 . . . 2 . 1 . 1 . . . . . . . . . . . . . . . . . . 1 . . Botnet 23 | . 3 . 3 . . . 8 1 3 . 1 . 2 . . . . . . . . . . . . 1 . 1 . . . . Disrupt 2 | . . . . . . . 1 . . . . . 1 . . . . . . . . . . . . . . . . . . . Operators 1 | . . . . . . . 1 . . . . . . . . . . . . . . . . . . . . . . . . . Skim 30 | . 5 . 5 . . . 6 . 5 . 5 . 3 . . . . 1 . . . . . . . . . . . . . . Fabricators 7 | . . . . . . . . . 2 . . . 1 . . . . 1 . 2 . . . 1 . . . . . . . . Prioritize 5 | . . . . . . . . . 1 . . . . . . . . 1 . 2 . . . 1 . . . . . . . . Recompile 2 | . . . . . . . . . 1 . . . 1 . . . . . . . . . . . . . . . . . . . Repair Stations 3 | . . . . . . . . . 1 . . . 2 . . . . . . . . . . . . . . . . . . . Patch 3 | . . . . . . . . . 1 . . . 2 . . . . . . . . . . . . . . . . . . . Recycling Units 10 | . 2 . 2 . . . 4 . 1 . . . 1 . . . . . . . . . . . . . . . . . . . Monitor 1 | . . . . . . . 1 . . . . . . . . . . . . . . . . . . . . . . . . . Reject 1 | . . . . . . . 1 . . . . . . . . . . . . . . . . . . . . . . . . . Recyclers 2 | . . . . . . . 1 . . . . . 1 . . . . . . . . . . . . . . . . . . . Mask 1 | . . . . . . . 1 . . . . . . . . . . . . . . . . . . . . . . . . . Tunnel 5 | . 2 . 2 . . . . . 1 . . . . . . . . . . . . . . . . . . . . . . . Scanalyzers 2 | . . . . . . . . . . . . . . . . . . . . . . 1 . . . . . . . 1 . . Extract 2 | . . . . . . . . . . . . . . . . . . . . . . 1 . . . . . . . 1 . . Garrison Access 11 | . . . . . 1 . 1 . 4 . 1 . . . . . . . . . . 1 . . . 1 . 1 . 1 . . Broadcast 1 | . . . . . . . . . 1 . . . . . . . . . . . . . . . . . . . . . . . Reprogram 8 | . . . . . 1 . 1 . 1 . 1 . . . . . . . . . . 1 . . . 1 . 1 . 1 . . Intercept 1 | . . . . . . . . . 1 . . . . . . . . . . . . . . . . . . . . . . . Watchers 1 | . . . . . . . . . 1 . . . . . . . . . . . . . . . . . . . . . . . Data Cores Recovered 1 | . . . . . . . . . 1 . . . . . . . . . . . . . . . . . . . . . . . Used . | . . . . . . . . . . . . . . . . . . . . . . . . . . . . . . . . . Hacking Detections 93 | . 7 . 6 . 1 1 13 2 14 1 10 1 9 . . . . 6 . 5 . 1 1 2 1 2 . 5 . 4 1 . Full Trace Events 17 | . . . . . . 1 3 . 3 1 1 . 1 . . . . 1 . 2 . . . 1 . 1 . 1 . 1 . . Feedback Events 3 | . . . . . . . 1 . . 2 . . . . . . . . . . . . . . . . . . . . . . Corruption 2 | . . . . . . . 1 . . 1 . . . . . . . . . . . . . . . . . . . . . . Hackware Fried 1 | . . . . . . . . . . 1 . . . . . . . . . . . . . . . . . . . . . . Feedback Blocked 1 | . . . . . . . . . . . . . . . . . . . . . . . . . . 1 . . . . . . Robot Schematics Acquired 7 | . . . . . . . 1 . . . . . . . . 6 . . . . . . . . . . . . . . . . Robots Built 4 | . . . . . . . . . . . 4 . . . . . . . . . . . . . . . . . . . . . Authchips . | . . . . . . . . . . . . . . . . . . . . . . . . . . . . . . . . . Time 44 | . . . . . . . . . . . 44 . . . . . . . . . . . . . . . . . . . . . Total Robot Build Rating 16 | . . . . . . . . . . . 16 . . . . . . . . . . . . . . . . . . . . . Part Schematics Acquired 36 | . . . 2 . . . 5 . 2 . . . 2 . . 10 . 4 . 1 . 8 . . . . . . . 2 . . Parts Built 14 | . . . . . . . . . 4 . . . . . . . . 4 . 3 . . . 2 . . . . . 1 . . Authchips 2 | . . . . . . . . . 1 . . . . . . . . 1 . . . . . . . . . . . . . . Time 244 | . . . . . . . . . 46 . . . . . . . . 54 . 71 . . . 23 . . . . . 50 . . Total Part Build Rating 79 | . . . . . . . . . 20 . . . . . . . . 24 . 20 . . . 10 . . . . . 5 . . Part Studies Acquired 13 | . . . 3 . . . 1 . 4 . 1 . 1 . . . . . . 3 . . . . . . . . . . . . Parts Repaired 10 | . . . . . . . . . 1 . 1 . 1 . . . . 3 . 2 . . . . . 1 . 1 . . . . Time 279 | . . . . . . . . . 16 . 16 . 25 . . . . 94 . 88 . . . . . 20 . 20 . . . . Parts Recycled . | . . . . . . . . . . . . . . . . . . . . . . . . . . . . . . . . . Recycled Matter 320 | . . . . . . . . . . . . . . . . . . . . 320 . . . . . . . . . . . . Retrieved Matter 320 | . . . . . . . . . . . . . . . . . . . . 320 . . . . . . . . . . . . Retrieved Components . | . . . . . . . . . . . . . . . . . . . . . . . . . . . . . . . . . Parts Scanalyzed 7 | . . . 2 . . . 2 . . . 1 . 2 . . . . . . . . . . . . . . . . . . . Part Schematics Acquired 6 | . . . 2 . . . 2 . . . . . 2 . . . . . . . . . . . . . . . . . . . Parts Damaged . | . . . . . . . . . . . . . . . . . . . . . . . . . . . . . . . . . Bothacking | -11 -10 -10 -8 -8 -8 -8 -7 -7 -7 -7 -6 -6 -6 -6 -6 -6 -5 -5 -5 -4 -4 -4 -4 -3 -3 -3 -3 -2 -2 -1 -1 -1 ------------ Run | Yrd Mat Sub Mat Gar Mat Gar Fac Gar Fac Gar Fac Gar Fac Low Low Dat Pro Fac Gar Fac Was Fac Gar Res Gar Res Gar Res Gar Acc Gar Acc Used RIF Installer 12 | . . . . 1 . 1 . 1 . 2 . 1 . . . . . . 1 . . . 1 . 1 . 1 . 1 . 1 . Code Merge 1 | . . . . . . . . . . . . . . . . . . . . . . . . . 1 . . . . . . . Command Fork 1 | . . . . . . . . . . . . . . . . . . . . . . . . . . . . . 1 . . . Zone Cloak 2 | . . . . . . . . 1 . 1 . . . . . . . . . . . . . . . . . . . . . . Robot Detection 1 | . . . . . . . . . . . . . . . . . . . 1 . . . . . . . . . . . . . Watcher Feeds 1 | . . . . . . . . . . 1 . . . . . . . . . . . . . . . . . . . . . . Patrol Navigation 1 | . . . . . . . . . . . . 1 . . . . . . . . . . . . . . . . . . . . Alert ID Control 1 | . . . . . . . . . . . . . . . . . . . . . . . 1 . . . . . . . . . Structural Interface 1 | . . . . . . 1 . . . . . . . . . . . . . . . . . . . . . . . . . . Autoassimilate 2 | . . . . . . . . . . . . . . . . . . . . . . . . . . . 1 . . . 1 . Robots Hacked 8 | . . . . . . . . . . . . 3 . . . . . . . 1 . . . . . . . . . . 4 . Non-combat 1 | . . . . . . . . . . . . . . . . . . . . 1 . . . . . . . . . . . . Combat 7 | . . . . . . . . . . . . 3 . . . . . . . . . . . . . . . . . . 4 . Autoassimilated 4 | . . . . . . . . . . . . . . . . . . . . . . . . . . . . . . . 4 . Robot Hacks Applied 5 | . . . . . . . . . . . . 3 . . . . . . . 1 . . . . . . . . . . 1 . find_chute 1 | . . . . . . . . . . . . . . . . . . . . 1 . . . . . . . . . . . . amplify_resonance 2 | . . . . . . . . . . . . 1 . . . . . . . . . . . . . . . . . . 1 . overwrite_iff 2 | . . . . . . . . . . . . 2 . . . . . . . . . . . . . . . . . . . . Relay Couplers Released 34 | . . . . 6 . . . 5 . . . 4 2 . . . . . 3 . . . 3 . 3 . . . 5 . 3 . Machine Destruction 34 | . . . . 6 . . . 5 . . . 4 2 . . . . . 3 . . . 3 . 3 . . . 5 . 3 . Attached 7 | . . . . . . . . . . . . 1 . . . . . . . 1 . . . . 2 . . . 1 . 2 . Fabnet Peak Effective % . | . . . . . . . . . . . . . . . . . . . . . . . . . . . . . . . . . Robots Rewired 9 | . . . . . . 2 1 3 . . . . . . . . . . . . . . . . 3 . . . . . . . Allies Hacked . | . . . . . . . . . . . . . . . . . . . . . . . . . . . . . . . . . Hacks Repelled . | . . . . . . . . . . . . . . . . . . . . . . . . . . . . . . . . . Allies | -11 -10 -10 -8 -8 -8 -8 -7 -7 -7 -7 -6 -6 -6 -6 -6 -6 -5 -5 -5 -4 -4 -4 -4 -3 -3 -3 -3 -2 -2 -1 -1 -1 -------- Run | Yrd Mat Sub Mat Gar Mat Gar Fac Gar Fac Gar Fac Gar Fac Low Low Dat Pro Fac Gar Fac Was Fac Gar Res Gar Res Gar Res Gar Acc Gar Acc Total Allies 42 | . . . 1 2 . 2 5 3 3 . 6 2 . . . . . . . . . 2 . . 3 2 . 4 . 3 4 . Largest Group 6 | . . . 1 2 . 2 3 6 2 2 5 1 . . . . . . . . . . 2 . 3 2 2 . 4 3 4 . Highest-Rated Group 232 | . . . 10 62 . 62 48 168 32 32 58 27 . . . . . . . . . . 112 . 192 112 112 . 232 183 213 . Highest-Rated Ally 69 | . . . 10 31 . 31 16 40 26 16 27 27 . . . . . . . . . . 56 . 64 56 56 . 58 69 69 . Total Orders 2 | . . . . . . . . 2 . . . . . . . . . . . . . . . . . . . . . . . . STAY 1 | . . . . . . . . 1 . . . . . . . . . . . . . . . . . . . . . . . . FOLLOW 1 | . . . . . . . . 1 . . . . . . . . . . . . . . . . . . . . . . . . Ally Attacks 140 | . . . . 19 . 8 . 57 . 7 14 5 . . . . . . . . . . 4 . 1 . 1 . 3 . 21 . Total Damage 2737 | . . . . 251 . 146 . 814 . 106 163 60 . . . . . . . . . . 172 . 29 . . . 110 . 886 . Kills 25 | . . . . 2 . 3 . 10 . . 2 1 . . . . . . . . . . . . . . . . 1 . 6 . Allies Corrupted . | . . . . . . . . . . . . . . . . . . . . . . . . . . . . . . . . . Allies Melted . | . . . . . . . . . . . . . . . . . . . . . . . . . . . . . . . . . Intel | -11 -10 -10 -8 -8 -8 -8 -7 -7 -7 -7 -6 -6 -6 -6 -6 -6 -5 -5 -5 -4 -4 -4 -4 -3 -3 -3 -3 -2 -2 -1 -1 -1 ------- Run | Yrd Mat Sub Mat Gar Mat Gar Fac Gar Fac Gar Fac Gar Fac Low Low Dat Pro Fac Gar Fac Was Fac Gar Res Gar Res Gar Res Gar Acc Gar Acc Active Infowar (turns) 6182 | . 248 375 837 399 70 180 364 536 664 79 470 57 328 115 135 36 40 151 60 354 10 37 71 83 50 69 29 63 29 118 90 35 Optics 4195 | . . . . . . 122 364 536 664 79 470 57 328 115 135 36 40 151 60 354 10 37 71 83 50 69 29 63 29 118 90 35 Structural 1284 | . 128 214 837 105 . . . . . . . . . . . . . . . . . . . . . . . . . . . . Seismic 4643 | . 229 375 737 399 70 58 . . 440 79 470 38 289 115 116 36 40 151 22 333 10 37 52 83 50 69 24 60 29 118 82 32 Cloaking 65 | . . . . . . . . . . . . . . . . . . . . . . . . 23 . . . 3 8 19 . 12 ECM 2 | . . . . . . . 2 . . . . . . . . . . . . . . . . . . . . . . . . . Robot Analysis Total 154 | . 2 . . . . . 1 . 1 . . . . . . 150 . . . . . . . . . . . . . . . . Derelict Logs Recovered 4 | . . 1 . . . . . . . . . . . . 1 . 2 . . . . . . . . . . . . . . . Drone Launches . | . . . . . . . . . . . . . . . . . . . . . . . . . . . . . . . . . Drone Recoveries . | . . . . . . . . . . . . . . . . . . . . . . . . . . . . . . . . . Exploration | -11 -10 -10 -8 -8 -8 -8 -7 -7 -7 -7 -6 -6 -6 -6 -6 -6 -5 -5 -5 -4 -4 -4 -4 -3 -3 -3 -3 -2 -2 -1 -1 -1 ------------- Run | Yrd Mat Sub Mat Gar Mat Gar Fac Gar Fac Gar Fac Gar Fac Low Low Dat Pro Fac Gar Fac Was Fac Gar Res Gar Res Gar Res Gar Acc Gar Acc Turns Passed 6505 | 85 338 381 837 401 70 320 364 536 664 79 470 57 328 115 135 36 40 151 60 354 10 37 71 83 50 69 29 63 29 118 90 35 Spaces Moved 13295 | 70 692 753 842 321 49 329 1078 646 1833 211 1221 151 1020 388 446 100 150 275 182 562 63 157 164 180 267 165 124 218 134 164 200 140 Core 150 | 70 80 . . . . . . . . . . . . . . . . . . . . . . . . . . . . . . . Treads . | . . . . . . . . . . . . . . . . . . . . . . . . . . . . . . . . . Legs 400 | . . . 151 139 49 61 . . . . . . . . . . . . . . . . . . . . . . . . . . Wheels . | . . . . . . . . . . . . . . . . . . . . . . . . . . . . . . . . . Hover 811 | . . . 629 182 . . . . . . . . . . . . . . . . . . . . . . . . . . . . Flight 11934 | . 612 753 62 . . 268 1078 646 1833 211 1221 151 1020 388 446 100 150 275 182 562 63 157 164 180 267 165 124 218 134 164 200 140 Fastest Speed 5 | 50 37 37 37 42 120 27 25 23 22 14 22 12 7 19 13 7 7 15 5 15 15 15 5 7 6 14 5 14 5 15 5 5 Average Speed 27 | 50 38 37 57 79 120 45 26 25 24 21 22 20 20 19 21 18 20 19 17 15 15 15 13 12 11 14 13 14 13 15 14 14 Slowest Speed 190 | 50 60 37 130 190 120 125 28 106 29 22 24 22 23 19 83 21 23 23 72 72 15 15 15 15 12 14 14 80 15 15 15 15 Overloaded Moves 237 | . . . . . . . . . . 13 . 3 4 . 22 15 12 . 61 . . . 23 9 24 . 8 . 20 . 16 7 Propulsion Burnouts . | . . . . . . . . . . . . . . . . . . . . . . . . . . . . . . . . . Robots Hopped 76 | . 4 2 . . . 1 2 1 18 3 5 3 5 . . 2 . 3 1 1 . 1 3 2 5 . 3 2 2 . 5 2 Potential Cave-ins . | . . . . . . . . . . . . . . . . . . . . . . . . . . . . . . . . . Cave-ins Triggered . | . . . . . . . . . . . . . . . . . . . . . . . . . . . . . . . . . Exploration Rate (%) 39 | 4 95 39 80 50 9 48 42 71 58 41 32 35 34 59 70 82 53 10 32 21 78 7 36 11 43 5 29 7 45 7 46 8 Regions Visited 32 Branch Regions 5 Pre-discovered Areas 41 | . 3 1 2 . . . 2 . 1 . . . . . . 32 . . . . . . . . . . . . . . . . Known Exits Taken 14 | . 1 . 1 . 1 . 1 . 1 . 1 . 1 . . . 1 1 . . . 1 . 1 . 1 . 1 . 1 . . Unknown Exits Taken 5 | 1 . 1 . . . . . . . . . . . 1 1 1 . . . . . . . . . . . . . . . . Scrap Searched 6 | . . 1 . . . . . . . . . . . 2 3 . . . . . . . . . . . . . . . . . Spaces Dug 183 | . 1 5 16 13 2 29 11 1 20 . 12 . 11 6 7 . . 11 . 14 . 2 . 3 . 4 . 1 . 6 . 8 Terrain Destroyed 326 | . 1 17 16 15 2 29 11 83 20 . 12 . 11 6 7 . . 11 . 52 . 2 . 3 . 4 . 1 . 6 . 17 Melee 155 | . 1 5 16 13 2 8 11 1 20 . 12 . 11 6 7 . . 11 . 14 . 2 . 3 . 4 . 1 . 6 . 1 Projectile . | . . . . . . . . . . . . . . . . . . . . . . . . . . . . . . . . . AOE 171 | . . 12 . 2 . 21 . 82 . . . . . . . . . . . 38 . . . . . . . . . . . 16 Terrain Rammed . | . . . . . . . . . . . . . . . . . . . . . . . . . . . . . . . . . Walls Destroyed . | . . . . . . . . . . . . . . . . . . . . . . . . . . . . . . . . . Machines Disabled . | . . . . . . . . . . . . . . . . . . . . . . . . . . . . . . . . . Actions | -11 -10 -10 -8 -8 -8 -8 -7 -7 -7 -7 -6 -6 -6 -6 -6 -6 -5 -5 -5 -4 -4 -4 -4 -3 -3 -3 -3 -2 -2 -1 -1 -1 --------- Run | Yrd Mat Sub Mat Gar Mat Gar Fac Gar Fac Gar Fac Gar Fac Low Low Dat Pro Fac Gar Fac Was Fac Gar Res Gar Res Gar Res Gar Acc Gar Acc Total 15258 | 90 726 821 1050 399 55 441 1123 962 1957 239 1367 166 1103 410 475 107 158 350 206 783 62 164 203 225 277 200 129 234 139 242 251 144 Wait 1088 | . 4 45 73 15 . 45 . 179 62 31 97 . 39 13 15 2 9 51 18 155 . 6 36 33 3 27 5 6 6 65 48 . Move 13133 | 69 683 749 842 320 48 326 1073 643 1802 206 1210 144 1010 387 445 95 149 269 179 560 62 154 159 176 259 164 118 213 130 163 191 135 Hop 57 | . 4 1 . . . 1 2 1 12 1 5 3 4 . . 2 . 3 1 1 . 1 1 2 2 . 2 2 1 . 3 2 Pick Up 51 | 2 6 2 5 . 1 3 4 1 3 . 4 1 5 . 1 2 . 3 1 5 . . . 1 . . . 1 . . . . Fast Attach 75 | 4 3 . 16 5 . 10 5 2 10 . 4 . 1 . 1 . . 3 . 3 . . . 1 2 1 . . 1 1 2 . Attach 32 | . 1 1 . . . 5 2 1 2 . 2 1 5 . . . . 4 1 3 . . . 1 1 . . 2 . . . . Detach 10 | . . . 1 . . 2 3 . . . . . . . 1 . . . . 1 . . . . . 1 . . . . 1 . Swap 130 | . 2 2 10 11 2 7 7 17 11 . 11 4 5 . 3 . . 3 4 7 . . 4 3 1 1 3 3 . 4 2 3 Drop 73 | . 5 1 17 5 1 2 3 5 12 . 6 1 2 . 2 1 . 2 1 6 . . . . . . . . . 1 . . Fire 143 | 15 16 6 36 15 . 14 . 29 . . 2 5 . . . . . . . 2 . . . . . . . . . . 1 2 Melee 314 | . 2 14 48 24 2 17 18 3 40 1 24 1 16 10 7 5 . 12 1 30 . 3 2 8 1 6 . 7 1 8 1 2 Ram . | . . . . . . . . . . . . . . . . . . . . . . . . . . . . . . . . . Kick . | . . . . . . . . . . . . . . . . . . . . . . . . . . . . . . . . . Crush . | . . . . . . . . . . . . . . . . . . . . . . . . . . . . . . . . . Escape Stasis 72 | . . . . 4 . . . 37 . . . 5 16 . . . . . . 10 . . . . . . . . . . . . Rewire 44 | . . . . . . 8 5 22 . . . . . . . . . . . . . . . . 8 . . . . . 1 . Trap 21 | . . . . . . . . 21 . . . . . . . . . . . . . . . . . . . . . . . . Miscellaneous 15 | . . . 2 . 1 1 1 1 3 . 2 1 . . . . . . . . . . 1 . . . 1 . . . 1 . Route ------- -11/Scrapyard -10/Materials (discovered 6 exits: *Mat x3 / [*Min x2] / *Sub) -10/Subcaves (discovered 2 exits: *Mat / [*Rec]) -8/Materials (discovered 4 exits: *Fac x3 / Gar) -8/Garrison -8/Materials -8/Garrison -7/Factory (discovered 9 exits: *Fac x4 / *Sto x2 / *Low x2 / Gar) -7/Garrison (discovered 4 exits: *Fac x4) -7/Factory (discovered 4 exits: Fac / *Sto / *Low / Gar) -7/Garrison (discovered 3 exits: *Fac x3) -6/Factory (discovered 2 exits: *Fac / Gar) -6/Garrison (discovered 3 exits: *Fac x3) -6/Factory (discovered 3 exits: *Fac / *Low x2) -6/Lower Caves -6/Lower Caves (discovered 2 exits: *Fac / *Dat) -6/Data Miner -5/Proximity Caves -5/Factory -5/Garrison -4/Factory -4/Waste -4/Factory -4/Garrison (discovered 3 exits: *Res x3) -3/Research (discovered 2 exits: Arm / Gar) -3/Garrison -3/Research -3/Garrison -2/Research (discovered 3 exits: Tes x2 / Gar) -2/Garrison -1/Access -1/Garrison (discovered 4 exits: [*Acc x4]) -1/Access To Epsilon Eridani History --------- Turn | Location | Event 7 | -11/Scrapyard | Discovered new exit (range 16) 86 | -11/Scrapyard | Entered Materials 205 | -10/Materials | Met 8R-AWN 246 | -10/Materials | Discovered new exit (range 11) 269 | -10/Materials | Discovered new exit (range 13) 302 | -10/Materials | Build established: Mutant 309 | -10/Materials | Discovered new exit (range 6) 313 | -10/Materials | Learned 4 Subcaves zone layouts 345 | -10/Materials | Learned 4 Recycling zone layouts 369 | -10/Materials | Learned location of 1 exit from Storage 381 | -10/Materials | Identified exit to Materials 381 | -10/Materials | Identified exit to Subcaves 384 | -10/Materials | Discovered new exit (range 16) 385 | -10/Materials | Learned Storage trap positions 424 | -10/Materials | Entered Subcaves 425 | -10/Subcaves | Approached by a straggling Scientist 432 | -10/Subcaves | A swath of the cavern ceiling suddenly collapsed 447 | -10/Subcaves | Learned location of Zion (-7) 481 | -10/Subcaves | Discovered new exit (range 8) 530 | -10/Subcaves | A swath of the cavern ceiling suddenly collapsed 697 | -10/Subcaves | Visited Clippyterm 698 | -10/Subcaves | Learned 40 Factory zone layouts 772 | -10/Subcaves | Discovered new exit (range 6) 797 | -10/Subcaves | Ambushed by angry Subdweller bent on revenge 805 | -10/Subcaves | Entered Materials 805 | -8/Materials | Evolved 4 slots: Propulsion x2, Utility x2 1110 | -8/Materials | Discovered new exit (range 16) 1352 | -8/Materials | Learned Factory trap positions 1385 | -8/Materials | Identified exit to Factory 1419 | -8/Materials | Learned 2 Lower Caves zone layouts 1420 | -8/Materials | Learned Factory security intel 1421 | -8/Materials | Learned location of 1 exit from Storage 1425 | -8/Materials | Learned 2 Storage zone layouts 1438 | -8/Materials | Learned location of 2 exits from Factory 1462 | -8/Materials | Learned 4 Factory zone layouts 1466 | -8/Materials | Garrison activated, responded to threat 1642 | -8/Materials | Identified exit to Garrison 1642 | -8/Materials | Entered Garrison 1666 | -8/Garrison | Triggered checkpoint 1679 | -8/Garrison | Garrison Relay disabled 1774 | -8/Garrison | Rescued a captive Derelict 1774 | -8/Garrison | Rescued a captive Derelict 1818 | -8/Garrison | Triggered checkpoint 1856 | -8/Garrison | Destroyed 8 combat bots 1958 | -8/Garrison | Garrison Relay disabled 1990 | -8/Garrison | Discovered new exit (range 11) 2024 | -8/Garrison | Installed Relay Interface Framework 2043 | -8/Garrison | Entered Materials 2086 | -8/Materials | Build established: Scavenger-Mutant 2092 | -8/Materials | Identified exit to Garrison 2113 | -8/Materials | Entered Garrison 2227 | -8/Garrison | Core integrity fell below 50% 2276 | -8/Garrison | Lost 3 parts (1p1u1w) 2360 | -8/Garrison | Expanded RIF knowledge: Structural Interface 2373 | -8/Garrison | Triggered checkpoint 2430 | -8/Garrison | Discovered exit to Factory (range 12) 2433 | -8/Garrison | Entered Factory 2433 | -7/Factory | Evolved 2 slots: Propulsion x1, Utility x1 2434 | -7/Factory | Identified exit to Storage 2435 | -7/Factory | Identified exit to Factory 2436 | -7/Factory | Identified exit to Lower Caves 2437 | -7/Factory | Loaded intel: 84 trap records 2679 | -7/Factory | Learned location of Lower Caves (-6) 2708 | -7/Factory | Central database locked down 2713 | -7/Factory | Build established: Scavenger-Sprinter 2732 | -7/Factory | Loaded intel: 4 garrison access locations 2744 | -7/Factory | Loaded intel: 6 fabricator locations 2747 | -7/Factory | Learned Extension trap positions 2776 | -7/Factory | Identified exit to Garrison 2797 | -7/Factory | Entered Garrison 2797 | -7/Garrison | Accompanied by 3 allies 2798 | -7/Garrison | Identified exit to Factory 2809 | -7/Garrison | Triggered checkpoint 2844 | -7/Garrison | Garrison Relay disabled 2871 | -7/Garrison | Triggered checkpoint 3091 | -7/Garrison | Triggered checkpoint 3129 | -7/Garrison | Triggered checkpoint 3175 | -7/Garrison | Discovered exit to Factory (range 15) 3231 | -7/Garrison | Triggered checkpoint 3251 | -7/Garrison | Expanded RIF knowledge: Zone Cloak 3261 | -7/Garrison | Discovered exit to Factory (range 58) 3261 | -7/Garrison | Discovered exit to Factory (range 14) 3261 | -7/Garrison | Discovered exit to Factory (range 57) 3261 | -7/Garrison | Discovered exit to Factory (range 83) 3302 | -7/Garrison | Learned Factory security intel 3313 | -7/Garrison | Triggered checkpoint 3333 | -7/Garrison | Entered Factory 3733 | -7/Factory | Repaired VTOL Module+ 3742 | -7/Factory | Learned location of 1 exit from Extension 3768 | -7/Factory | Learned 2 Proximity Caves zone layouts 3782 | -7/Factory | Learned Extension security intel 3788 | -7/Factory | Learned Extension stockpile data 3804 | -7/Factory | Learned location of 2 exits from Proximity Caves 3832 | -7/Factory | Learned location of 1 exit from Hub_04(d) 3887 | -7/Factory | Identified exit to Garrison 3907 | -7/Factory | Discovered exit to Storage (range 8) 3935 | -7/Factory | Fabricated Imp. Surge Thruster (x2) 3973 | -7/Factory | Central database locked down 3977 | -7/Factory | Fabricated Imp. Surge Thruster? 3997 | -7/Factory | Entered Garrison 3997 | -7/Garrison | Accompanied by 2 allies 4001 | -7/Garrison | Expanded RIF knowledge: Watcher Feeds 4060 | -7/Garrison | Discovered exit to Factory (range 48) 4060 | -7/Garrison | Discovered exit to Factory (range 41) 4060 | -7/Garrison | Discovered exit to Factory (range 38) 4060 | -7/Garrison | Hacking Suite fried by hacking feedback 4073 | -7/Garrison | Expanded RIF knowledge: Zone Cloak 4076 | -7/Garrison | Entered Factory 4076 | -6/Factory | Evolved 2 slots: Propulsion x1, Utility x1 4136 | -6/Factory | Garrison activated, responded to threat 4261 | -6/Factory | Fabricated S-27 Virus (x4) 4294 | -6/Factory | Repaired VTOL Module+? 4319 | -6/Factory | Discovered new exit (range 20) 4367 | -6/Factory | Identified exit to Garrison 4393 | -6/Factory | Central database locked down 4426 | -6/Factory | Search patrols dispatched 4434 | -6/Factory | Lost 4 allies 4443 | -6/Factory | Learned Extension trap positions 4481 | -6/Factory | Learned location of 1 exit from Proximity Caves 4511 | -6/Factory | Learned 4 Proximity Caves zone layouts 4533 | -6/Factory | Learned location of 1 exit from Cetus 4546 | -6/Factory | Learned location of 2 exits from Archives 4546 | -6/Factory | Entered Garrison 4546 | -6/Garrison | Accompanied by 1 ally 4557 | -6/Garrison | Garrison Relay disabled 4566 | -6/Garrison | Triggered checkpoint 4574 | -6/Garrison | Discovered new exit (range 44) 4574 | -6/Garrison | Discovered new exit (range 30) 4574 | -6/Garrison | Discovered new exit (range 62) 4589 | -6/Garrison | Triggered checkpoint 4590 | -6/Garrison | Triggered checkpoint 4601 | -6/Garrison | Expanded RIF knowledge: Patrol Navigation 4603 | -6/Garrison | Entered Factory 4634 | -6/Factory | Lost 3 parts (1p1n1u) 4702 | -6/Factory | Spotted B-75 Beast 4707 | -6/Factory | Discovered new exit (range 13) 4821 | -6/Factory | Repaired Imp. Surge Thruster+? 4900 | -6/Factory | Discovered new exit (range 11) 4911 | -6/Factory | Identified exit to Lower Caves 4931 | -6/Factory | Entered Lower Caves 4990 | -6/Lower Caves | Encountered a Warlord checkpoint 5037 | -6/Lower Caves | Discovered new exit (range 13) 5046 | -6/Lower Caves | Entered another Lower Caves area 5053 | -6/Lower Caves | Discovered new exit (range 7) 5060 | -6/Lower Caves | Learned Factory machine intel 5084 | -6/Lower Caves | Attracted the attention of an 0b10 outpost 5090 | -6/Lower Caves | Spotted B-75 Beast 5138 | -6/Lower Caves | Encountered a Warlord checkpoint 5179 | -6/Lower Caves | Discovered new exit (range 11) 5181 | -6/Lower Caves | Entered Data Miner 5181 | -6/Data Miner | Discovered new exit (range 6) 5184 | -6/Data Miner | Met Data Miner 5189 | -6/Data Miner | Learned location of Section 7 (-3) 5189 | -6/Data Miner | Acquired the access code to Warlord's prototype stash 5193 | -6/Data Miner | Received God Mode back door access code from Data Miner 5196 | -6/Data Miner | Destroyed Data Miner 5198 | -6/Data Miner | Found Prototype Hackware 5199 | -6/Data Miner | Interfaced with the Data Conduit 5200 | -6/Data Miner | Found Prototype Hackware 5217 | -6/Data Miner | Entered Proximity Caves 5217 | -5/Proximity Caves | Spotted B-75 Beast 5218 | -5/Proximity Caves | Identified exit to Factory 5221 | -5/Proximity Caves | Learned 4 Factory zone layouts 5257 | -5/Proximity Caves | Entered Factory 5257 | -5/Factory | Evolved 2 slots: Utility x2 5259 | -5/Factory | Loaded intel: 315 machine locations 5259 | -5/Factory | Identified System Mapper 5260 | -5/Factory | Identified Quantum Router 5295 | -5/Factory | Fabricated Adv. Surge Thruster (x2) 5312 | -5/Factory | Fabricated Stasis Canceller (x2) 5355 | -5/Factory | Repaired Imp. Surge Thruster+? 5358 | -5/Factory | Repaired Imp. Propulsion Shielding 5375 | -5/Factory | Repaired Imp. Surge Thruster+ 5408 | -5/Factory | Identified exit to Garrison 5408 | -5/Factory | Entered Garrison 5409 | -5/Garrison | Loaded intel: 38 machine locations 5414 | -5/Garrison | Expanded RIF knowledge: Robot Detection 5434 | -5/Garrison | Garrison Relay disabled 5446 | -5/Garrison | Spotted B-75 Beast 5452 | -5/Garrison | Triggered checkpoint 5459 | -5/Garrison | Discovered new exit (range 10) 5468 | -5/Garrison | Entered Factory 5468 | -4/Factory | Evolved 2 slots: Power x1, Utility x1 5469 | -4/Factory | Loaded intel: 294 machine locations 5472 | -4/Factory | Discovered new exit (range 12) 5589 | -4/Factory | Fabricated Imp. Matter Compressor (x1) 5657 | -4/Factory | Fabricated Adv. Surge Thruster (x2) 5734 | -4/Factory | Repaired Power Sword 5750 | -4/Factory | Unchained authorized (DW-4LL) 5778 | -4/Factory | Repaired Imp. Propulsion Shielding? 5779 | -4/Factory | Build established: Hacker-Sprinter 5818 | -4/Factory | Spotted B-86 Titan 5822 | -4/Factory | Sucked down chute 5822 | -4/Factory | Entered Waste 5824 | -4/Waste | Spotted C-40 Crusher 5824 | -4/Waste | Spotted C-40 Crusher 5828 | -4/Waste | Spotted C-40 Crusher 5829 | -4/Waste | Discovered new exit (range 22) 5830 | -4/Waste | Spotted C-40 Crusher 5830 | -4/Waste | Spotted C-40 Crusher 5832 | -4/Waste | Entered Factory 5833 | -4/Factory | Loaded intel: 271 machine locations 5838 | -4/Factory | Identified exit to Garrison 5844 | -4/Factory | Spotted B-86 Titan 5869 | -4/Factory | Entered Garrison 5869 | -4/Garrison | Accompanied by 2 allies 5870 | -4/Garrison | Loaded intel: 36 machine locations 5877 | -4/Garrison | Discovered new exit (range 76) 5877 | -4/Garrison | Discovered new exit (range 52) 5877 | -4/Garrison | Discovered new exit (range 59) 5899 | -4/Garrison | Spotted B-86 Titan 5913 | -4/Garrison | Triggered checkpoint 5915 | -4/Garrison | Triggered checkpoint 5931 | -4/Garrison | Garrison Relay disabled 5938 | -4/Garrison | Expanded RIF knowledge: Alert ID Control 5940 | -4/Garrison | Entered Research 5940 | -3/Research | Evolved 2 slots: Utility x2 5941 | -3/Research | Identified exit to Armory 5942 | -3/Research | Loaded intel: 127 machine locations 5994 | -3/Research | Fabricated Adv. Heat Sink (x2) 6019 | -3/Research | Spotted B-86 Titan 6023 | -3/Research | Identified exit to Garrison 6023 | -3/Research | Entered Garrison 6024 | -3/Garrison | Loaded intel: 31 machine locations 6030 | -3/Garrison | Learned Research security intel 6053 | -3/Garrison | Spotted B-86 Titan 6055 | -3/Garrison | Triggered checkpoint 6056 | -3/Garrison | Expanded RIF knowledge: Code Merge 6057 | -3/Garrison | Garrison Relay disabled 6071 | -3/Garrison | Triggered checkpoint 6072 | -3/Garrison | Discovered new exit (range 10) 6073 | -3/Garrison | Entered Research 6075 | -3/Research | Loaded intel: 121 machine locations 6101 | -3/Research | Repaired Adv. Surge Thruster+ 6112 | -3/Research | Identified exit to Garrison 6142 | -3/Research | Entered Garrison 6142 | -3/Garrison | Accompanied by 2 allies 6143 | -3/Garrison | Loaded intel: 37 machine locations 6157 | -3/Garrison | Spotted B-86 Titan 6158 | -3/Garrison | Triggered checkpoint 6158 | -3/Garrison | Triggered checkpoint 6158 | -3/Garrison | Triggered checkpoint 6162 | -3/Garrison | Expanded RIF knowledge: Autoassimilate 6169 | -3/Garrison | Discovered new exit (range 12) 6171 | -3/Garrison | Entered Research 6171 | -2/Research | Evolved 2 slots: Utility x2 6172 | -2/Research | Loaded intel: 111 machine locations 6177 | -2/Research | Identified exit to Testing 6213 | -2/Research | Identified exit to Garrison 6229 | -2/Research | Repaired Adv. Surge Thruster+ 6234 | -2/Research | Entered Garrison 6234 | -2/Garrison | Accompanied by 4 allies 6235 | -2/Garrison | Loaded intel: 27 machine locations 6246 | -2/Garrison | Spotted B-90 Cyclops 6253 | -2/Garrison | Expanded RIF knowledge: Command Fork 6255 | -2/Garrison | Discovered new exit (range 11) 6256 | -2/Garrison | Triggered checkpoint 6257 | -2/Garrison | Garrison Relay disabled 6263 | -2/Garrison | Entered Access 6263 | -1/Access | Evolved 2 slots: Utility x2 6264 | -1/Access | Loaded intel: 136 machine locations 6315 | -1/Access | Fabricated Exp. Propulsion Shielding (x1) 6350 | -1/Access | Identified exit to Garrison 6381 | -1/Access | Entered Garrison 6381 | -1/Garrison | Accompanied by 3 allies 6382 | -1/Garrison | Loaded intel: 35 machine locations 6387 | -1/Garrison | Expanded RIF knowledge: Autoassimilate 6388 | -1/Garrison | Garrison Relay disabled 6395 | -1/Garrison | Triggered checkpoint 6404 | -1/Garrison | Discovered new exit (range 44) 6404 | -1/Garrison | Discovered new exit (range 41) 6404 | -1/Garrison | Discovered new exit (range 72) 6404 | -1/Garrison | Discovered new exit (range 78) 6404 | -1/Garrison | Learned Access security intel 6455 | -1/Garrison | P-80 Master assimilated allied H-88 Terminator 6462 | -1/Garrison | Spotted B-99 Colossus 6463 | -1/Garrison | Triggered checkpoint 6467 | -1/Garrison | Learned Access security intel 6469 | -1/Garrison | Triggered checkpoint 6471 | -1/Garrison | Entered Access 6473 | -1/Access | Loaded intel: 119 machine locations 6480 | -1/Access | Spotted B-99 Colossus 6480 | -1/Access | Spotted B-99 Colossus 6490 | -1/Access | Energy Cycler disabled 6505 | -1/Access | Discovered new exit (range 6) 6506 | *** | Escaped! Last Messages --------------- 06480_ Sneak attack on U-05 Engineer. 06480_ Destroyed Welding Torch. 06480_ U-05 Engineer destroyed. 06483_ Acquired 27 matter. 06483_ RIF reveals location of hidden door. 06489_ K-01 Serf cleans the Wave Collapse Detector. 06490_ ALERT: Power surge detected, dispatching additional patrols. 06490_ Energy Cycler explodes. 06492_ K-01 Serf cleans the Wave Collapse Detector. 06494_ Penetrated by Slug. 06498_ >> Watcher Feeds: Established visual feed link with W-44 Eye. 06498_ The unstable cave ceiling collapses. 06499_ >> Watcher Feeds: Established visual feed link with W-44 Eye. 06505_ The Access Shell folds into the floor. 06505_ EXIT=FOUND Map ----- +----------------------------------------------------+ | ?????????? "" #??????????????????????????????? | | ?????????? "" #??????????????????????????"???? | | ?????????"""""" #??????????????????????????????? | | ?????????"""""" #??????????????????????????????? | | ???????????"" #??????????????????????????????? | | ???????????"" ]#??????????????????????????????? | | ????????????? #??????????????????????????????? | | ????????????? #??????????????????????????????? | | ?????????????? ???????????????????????????????? | | ?????????????? ????????????????????????????????? | | ??#############+#########################????????? | | ??# # k ??????? | | ??# = # w k ???????? | | ??# ! # w####### ""##????????????????? | | ??# # #?????# ""#?????????????????? | | ??# # #?????# ""#?????????????????? | | ??# + #?????# T#?????????"""?????? | | ??# # #?????# ""#?????????"Y"?????? | | ??# + #?????# ""#?????????"?"?????? | | ??# # #????## ""##????????????????? | | ##########"# #????# #????????????????? | | ## #????## ##????????????????? | | ## #?????# #?????????????????? | | ## #?????# #?????????????????? | | ## #?????# #?????????????????? | | ## #?????# @" #?????????????????? | | ## ##????# "" #?????????????????? | | #######+### #????# #?????????????????? | | ???# #????# #?????????????????? | | ???# H #????# #?????????????????? | | ???# ##### #????#""""""""""#?????????????????? | | ???# #????#####?????""""""""""??????????????????? | | ???# #??????????????""""""""""??????????????????? | | ???# #??????????????""""""""""??????????????????? | | ???# #???????????????? ??????????????????? | | #### ##??????????????? ??????????????????? | | "###????????????? ???????????????????? | | """""""""###??????????? ???????????????????? | | #??????????? ???????????????????? | | #??????????? ????????????????????? | | #??????????? ????????????????????? | | #?########### #????????????????????? | | #?# # #????????????????????? | | #?# # #????????????????????? | | # ###?# """ # #????????????????????? | | = #??# "R # #????????????????????? | | #??# """ # #????????????????????? | | #??# "" # #????????????????????? | | #### # #????????????????????? | | + + # #????????????????????? | +----------------------------------------------------+ Best States ------------- Heat Dissipation 90 Energy Generation 43 Energy Capacity 240 Matter Stores 300 Matter Capacity 300 Sight Range 22 Terrain Scan Density 10 ECM Strength 1 Cloak Strength 3 Additional Mass Support 12 Base Temperature (-) 200 Corruption Block 8 Armor Coverage 225 Propulsion Shielding 90 Evasion (%) 67 Offensive Hacking 40 Defensive Hacking 25 Relay Coupler Types 5 Relay Coupler Value 139 Authchip Count 1 Item Schematics ----------------- Multitool | -8/Materials | Scanalyzed Gatling Laser | -8/Materials | Scanalyzed Adv. ECM Suite | -7/Factory | Hacked IFF Parser | -7/Factory | Hacked Nuclear Pulse Thruster | -7/Factory | Hacked Cld. VTOL Module | -7/Factory | Scanalyzed Imp. Cryofiber Web | -7/Factory | Scanalyzed Imp. Surge Thruster | -7/Factory | Hacked EM Disruption Field | -7/Factory | Hacked Fusion Compressor | -6/Factory | Scanalyzed Imp. Propulsion Shielding | -6/Factory | Scanalyzed Combat Drone Bay | -6/Data Miner | Free Lgt. Regenerative Plating | -6/Data Miner | Free Cld. Gravmag System | -6/Data Miner | Free Imp. Matter Compressor | -6/Data Miner | Free Tiamat Missile Launcher | -6/Data Miner | Free Imp. Linear Gravjet | -6/Data Miner | Free Adv. Power Amplifier | -6/Data Miner | Free Hyp. Mass Driver | -6/Data Miner | Free Point Defense System | -6/Data Miner | Free Lgt. Particle Reactor | -6/Data Miner | Free Adv. Surge Thruster | -5/Factory | Hacked Stasis Canceller | -5/Factory | Hacked Exp. Propulsion Shielding | -5/Factory | Hacked Adv. Heat Sink | -5/Factory | Hacked Graphene Brace | -4/Factory | Hacked Hvy. Siege Treads | -4/Factory | Extracted Impulse Thruster | -4/Factory | Extracted Variable Charge Gun | -4/Factory | Extracted Adv. Melee Analysis Suite | -4/Factory | Extracted Imp. Gyrokinetic Inverter | -4/Factory | Extracted Vibroblade | -4/Factory | Extracted Hvy. Mace | -4/Factory | Extracted Adv. Plasma Cannon | -4/Factory | Extracted Adv. Salvage Targeting Computer | -1/Access | Extracted Exp. Thermal Shield | -1/Access | Extracted Robot Schematics ------------------ S-27 Virus | -7/Factory | Hacked R-10 Processor | -6/Data Miner | Free B-60 Warrior | -6/Data Miner | Free B-48 Gladiator | -6/Data Miner | Free A-27 Freighter | -6/Data Miner | Free G-67 Veteran | -6/Data Miner | Free A-15 Conveyor | -6/Data Miner | Free Fabricated ------------ Imp. Surge Thruster | x2 | -7/Factory | Authchip Imp. Surge Thruster | x2 | -7/Factory S-27 Virus | x4 | -6/Factory | Preloaded Adv. Surge Thruster | x2 | -5/Factory | Authchip Stasis Canceller | x2 | -5/Factory Imp. Matter Compressor | x1 | -4/Factory Adv. Surge Thruster | x2 | -4/Factory Adv. Heat Sink | x2 | -3/Research Exp. Propulsion Shielding | x1 | -1/Access Repaired ---------- VTOL Module | 4% | -7/Factory VTOL Module | 36% | -6/Factory Imp. Surge Thruster | 42% | -6/Factory Imp. Surge Thruster | 21% | -5/Factory Imp. Propulsion Shielding | 62% | -5/Factory Imp. Surge Thruster | 6% | -5/Factory Power Sword | 26% | -4/Factory Imp. Propulsion Shielding | 3% | -4/Factory Adv. Surge Thruster | 14% | -3/Research Adv. Surge Thruster | 21% | -2/Research Studied --------- Grenade Launcher | -8/Materials | Hacked Flight Unit | -8/Materials | Hacked Missile Launcher | -8/Materials | Hacked Cesium-ion Thruster | -7/Factory | Hacked VTOL Module | -7/Factory | Hacked Hvy. Missile Launcher | -7/Factory | Hacked Lgt. Ion Engine | -7/Factory | Hacked Mic. Nuclear Core | -7/Factory | Hacked Imp. Surge Thruster | -6/Factory | Hacked Lgt. Fission Core | -6/Factory | Hacked Adv. Surge Thruster | -4/Factory | Hacked Fusion Compressor | -4/Factory | Hacked Lgt. Nuclear Core | -4/Factory | Hacked Alien Tech Used ----------------- None Achievements -------------- Follow The Leader Challenges ------------ None Game ------ Seed DisposableMediumMaul Manual? 0 Play Time 03:25:48 Cumulative 606.3 hours Start 2025.11.04 @ 14:36:15 End 2025.11.04 @ 18:14:40 Sessions 1 Manual Loads 0 Difficulty Rogue Special Mode None Game No. 250 Rogue 250 Adventurer 0 Explorer 0 Win Type 0 Total 45 Types 20/4/6/2/6/1/0/3/0/3 Lore% 96 Gallery% 88 Achievement% 72 Wizard Run 0 Options --------- Layout 1 ASCII 0 Keyboard 0 Movement Numpad Keybinds 0 Fullscreen 1 Font 24/Smallcaps Map View 50x35 Zoom Use 0% Tactical HUD 1 Map Filters NONE Filters NONE Steam 1 RUN: 823ffe8f-dfd5-48d2-81bf-4cfff5d6efe1